Workbook

Sheet MAIN
C9: Baupreis- Index Auswahl nach Jahr | D9: Quartal | F9: Gebäudeklasse | H9: Baupreis- Index in % | L9: Gesamte Positionen
C10: 2020 | D10: II | F10: Wohngebäude | H10: =Datensatz!C2 -> 1.180380952 | L10: =SANITÄR!J254+ABDICHTUNGSARBEITEN!J99+0 -> 234

Sheet ABDICHTUNGSARBEITEN
C6: Suche: | I6: Treffer:
I7: =COUNTIF($C$26:$C$257,"*"&$C$7&"*") -> 67
A9: Katalog | B9: Pos. Nr. | C9: Ergebnis | D9: Einheit | E9: EP | F9: INDEXPREIS | G9: Von | H9: Mittel | I9: Bis
A10: =IF($C$7="","",IFERROR(INDEX(A:A,_xlfn.AGGREGATE(15,6,ROW(Tabelle1[Bezeichnung])/(FIND($C$7,Tabelle1[Bezeichnung],1)>0),ROW()-9),1),"")) ->  | B10: =IF($C$7="","",IFERROR(INDEX(B:B,_xlfn.AGGREGATE(15,6,ROW(Tabelle1[Bezeichnung])/(FIND($C$7,Tabelle1[Bezeichnung],1)>0),ROW()-9),1),"")) ->  | C10: =IF($C$7="","",IFERROR(INDEX(C:C,_xlfn.AGGREGATE(15,6,ROW(Tabelle1[Bezeichnung])/(FIND($C$7,Tabelle1[Bezeichnung],1)>0),ROW()-9),1),"")) ->  | D10: =IF($C$7="","",IFERROR(INDEX(D:D,_xlfn.AGGREGATE(15,6,ROW(Tabelle1[Bezeichnung])/(FIND($C$7,Tabelle1[Bezeichnung],1)>0),ROW()-9),1),"")) ->  | E10: =IF($C$7="","",IFERROR(INDEX(E:E,_xlfn.AGGREGATE(15,6,ROW(Tabelle1[Bezeichnung])/(FIND($C$7,Tabelle1[Bezeichnung],1)>0),ROW()-9),1),"")) ->  | F10: =IF($C$7="","",IFERROR(INDEX(F:F,_xlfn.AGGREGATE(15,6,ROW(Tabelle1[Bezeichnung])/(FIND($C$7,Tabelle1[Bezeichnung],1)>0),ROW()-9),1),"")) ->  | G10: =IF($C$7="","",IFERROR(INDEX(G:G,_xlfn.AGGREGATE(15,6,ROW(Tabelle1[Bezeichnung])/(FIND($C$7,Tabelle1[Bezeichnung],1)>0),ROW()-9),1),"")) ->  | H10: =IF($C$7="","",IFERROR(INDEX(H:H,_xlfn.AGGREGATE(15,6,ROW(Tabelle1[Bezeichnung])/(FIND($C$7,Tabelle1[Bezeichnung],1)>0),ROW()-9),1),"")) ->  | I10: =IF($C$7="","",IFERROR(INDEX(I:I,_xlfn.AGGREGATE(15,6,ROW(Tabelle1[Bezeichnung])/(FIND($C$7,Tabelle1[Bezeichnung],1)>0),ROW()-9),1),"")) -> 
A11: =IF($C$7="","",IFERROR(INDEX(A:A,_xlfn.AGGREGATE(15,6,ROW(Tabelle1[Bezeichnung])/(FIND($C$7,Tabelle1[Bezeichnung],1)>0),ROW()-9),1),"")) ->  | B11: =IF($C$7="","",IFERROR(INDEX(B:B,_xlfn.AGGREGATE(15,6,ROW(Tabelle1[Bezeichnung])/(FIND($C$7,Tabelle1[Bezeichnung],1)>0),ROW()-9),1),"")) ->  | C11: =IF($C$7="","",IFERROR(INDEX(C:C,_xlfn.AGGREGATE(15,6,ROW(Tabelle1[Bezeichnung])/(FIND($C$7,Tabelle1[Bezeichnung],1)>0),ROW()-9),1),"")) ->  | D11: =IF($C$7="","",IFERROR(INDEX(D:D,_xlfn.AGGREGATE(15,6,ROW(Tabelle1[Bezeichnung])/(FIND($C$7,Tabelle1[Bezeichnung],1)>0),ROW()-9),1),"")) ->  | E11: =IF($C$7="","",IFERROR(INDEX(E:E,_xlfn.AGGREGATE(15,6,ROW(Tabelle1[Bezeichnung])/(FIND($C$7,Tabelle1[Bezeichnung],1)>0),ROW()-9),1),"")) ->  | F11: =IF($C$7="","",IFERROR(INDEX(F:F,_xlfn.AGGREGATE(15,6,ROW(Tabelle1[Bezeichnung])/(FIND($C$7,Tabelle1[Bezeichnung],1)>0),ROW()-9),1),"")) ->  | G11: =IF($C$7="","",IFERROR(INDEX(G:G,_xlfn.AGGREGATE(15,6,ROW(Tabelle1[Bezeichnung])/(FIND($C$7,Tabelle1[Bezeichnung],1)>0),ROW()-9),1),"")) ->  | H11: =IF($C$7="","",IFERROR(INDEX(H:H,_xlfn.AGGREGATE(15,6,ROW(Tabelle1[Bezeichnung])/(FIND($C$7,Tabelle1[Bezeichnung],1)>0),ROW()-9),1),"")) ->  | I11: =IF($C$7="","",IFERROR(INDEX(I:I,_xlfn.AGGREGATE(15,6,ROW(Tabelle1[Bezeichnung])/(FIND($C$7,Tabelle1[Bezeichnung],1)>0),ROW()-9),1),"")) -> 
A12: =IF($C$7="","",IFERROR(INDEX(A:A,_xlfn.AGGREGATE(15,6,ROW(Tabelle1[Bezeichnung])/(FIND($C$7,Tabelle1[Bezeichnung],1)>0),ROW()-9),1),"")) ->  | B12: =IF($C$7="","",IFERROR(INDEX(B:B,_xlfn.AGGREGATE(15,6,ROW(Tabelle1[Bezeichnung])/(FIND($C$7,Tabelle1[Bezeichnung],1)>0),ROW()-9),1),"")) ->  | C12: =IF($C$7="","",IFERROR(INDEX(C:C,_xlfn.AGGREGATE(15,6,ROW(Tabelle1[Bezeichnung])/(FIND($C$7,Tabelle1[Bezeichnung],1)>0),ROW()-9),1),"")) ->  | D12: =IF($C$7="","",IFERROR(INDEX(D:D,_xlfn.AGGREGATE(15,6,ROW(Tabelle1[Bezeichnung])/(FIND($C$7,Tabelle1[Bezeichnung],1)>0),ROW()-9),1),"")) ->  | E12: =IF($C$7="","",IFERROR(INDEX(E:E,_xlfn.AGGREGATE(15,6,ROW(Tabelle1[Bezeichnung])/(FIND($C$7,Tabelle1[Bezeichnung],1)>0),ROW()-9),1),"")) ->  | F12: =IF($C$7="","",IFERROR(INDEX(F:F,_xlfn.AGGREGATE(15,6,ROW(Tabelle1[Bezeichnung])/(FIND($C$7,Tabelle1[Bezeichnung],1)>0),ROW()-9),1),"")) ->  | G12: =IF($C$7="","",IFERROR(INDEX(G:G,_xlfn.AGGREGATE(15,6,ROW(Tabelle1[Bezeichnung])/(FIND($C$7,Tabelle1[Bezeichnung],1)>0),ROW()-9),1),"")) ->  | H12: =IF($C$7="","",IFERROR(INDEX(H:H,_xlfn.AGGREGATE(15,6,ROW(Tabelle1[Bezeichnung])/(FIND($C$7,Tabelle1[Bezeichnung],1)>0),ROW()-9),1),"")) ->  | I12: =IF($C$7="","",IFERROR(INDEX(I:I,_xlfn.AGGREGATE(15,6,ROW(Tabelle1[Bezeichnung])/(FIND($C$7,Tabelle1[Bezeichnung],1)>0),ROW()-9),1),"")) -> 
A13: =IF($C$7="","",IFERROR(INDEX(A:A,_xlfn.AGGREGATE(15,6,ROW(Tabelle1[Bezeichnung])/(FIND($C$7,Tabelle1[Bezeichnung],1)>0),ROW()-9),1),"")) ->  | B13: =IF($C$7="","",IFERROR(INDEX(B:B,_xlfn.AGGREGATE(15,6,ROW(Tabelle1[Bezeichnung])/(FIND($C$7,Tabelle1[Bezeichnung],1)>0),ROW()-9),1),"")) ->  | C13: =IF($C$7="","",IFERROR(INDEX(C:C,_xlfn.AGGREGATE(15,6,ROW(Tabelle1[Bezeichnung])/(FIND($C$7,Tabelle1[Bezeichnung],1)>0),ROW()-9),1),"")) ->  | D13: =IF($C$7="","",IFERROR(INDEX(D:D,_xlfn.AGGREGATE(15,6,ROW(Tabelle1[Bezeichnung])/(FIND($C$7,Tabelle1[Bezeichnung],1)>0),ROW()-9),1),"")) ->  | E13: =IF($C$7="","",IFERROR(INDEX(E:E,_xlfn.AGGREGATE(15,6,ROW(Tabelle1[Bezeichnung])/(FIND($C$7,Tabelle1[Bezeichnung],1)>0),ROW()-9),1),"")) ->  | F13: =IF($C$7="","",IFERROR(INDEX(F:F,_xlfn.AGGREGATE(15,6,ROW(Tabelle1[Bezeichnung])/(FIND($C$7,Tabelle1[Bezeichnung],1)>0),ROW()-9),1),"")) ->  | G13: =IF($C$7="","",IFERROR(INDEX(G:G,_xlfn.AGGREGATE(15,6,ROW(Tabelle1[Bezeichnung])/(FIND($C$7,Tabelle1[Bezeichnung],1)>0),ROW()-9),1),"")) ->  | H13: =IF($C$7="","",IFERROR(INDEX(H:H,_xlfn.AGGREGATE(15,6,ROW(Tabelle1[Bezeichnung])/(FIND($C$7,Tabelle1[Bezeichnung],1)>0),ROW()-9),1),"")) ->  | I13: =IF($C$7="","",IFERROR(INDEX(I:I,_xlfn.AGGREGATE(15,6,ROW(Tabelle1[Bezeichnung])/(FIND($C$7,Tabelle1[Bezeichnung],1)>0),ROW()-9),1),"")) -> 
A14: =IF($C$7="","",IFERROR(INDEX(A:A,_xlfn.AGGREGATE(15,6,ROW(Tabelle1[Bezeichnung])/(FIND($C$7,Tabelle1[Bezeichnung],1)>0),ROW()-9),1),"")) ->  | B14: =IF($C$7="","",IFERROR(INDEX(B:B,_xlfn.AGGREGATE(15,6,ROW(Tabelle1[Bezeichnung])/(FIND($C$7,Tabelle1[Bezeichnung],1)>0),ROW()-9),1),"")) ->  | C14: =IF($C$7="","",IFERROR(INDEX(C:C,_xlfn.AGGREGATE(15,6,ROW(Tabelle1[Bezeichnung])/(FIND($C$7,Tabelle1[Bezeichnung],1)>0),ROW()-9),1),"")) ->  | D14: =IF($C$7="","",IFERROR(INDEX(D:D,_xlfn.AGGREGATE(15,6,ROW(Tabelle1[Bezeichnung])/(FIND($C$7,Tabelle1[Bezeichnung],1)>0),ROW()-9),1),"")) ->  | E14: =IF($C$7="","",IFERROR(INDEX(E:E,_xlfn.AGGREGATE(15,6,ROW(Tabelle1[Bezeichnung])/(FIND($C$7,Tabelle1[Bezeichnung],1)>0),ROW()-9),1),"")) ->  | F14: =IF($C$7="","",IFERROR(INDEX(F:F,_xlfn.AGGREGATE(15,6,ROW(Tabelle1[Bezeichnung])/(FIND($C$7,Tabelle1[Bezeichnung],1)>0),ROW()-9),1),"")) ->  | G14: =IF($C$7="","",IFERROR(INDEX(G:G,_xlfn.AGGREGATE(15,6,ROW(Tabelle1[Bezeichnung])/(FIND($C$7,Tabelle1[Bezeichnung],1)>0),ROW()-9),1),"")) ->  | H14: =IF($C$7="","",IFERROR(INDEX(H:H,_xlfn.AGGREGATE(15,6,ROW(Tabelle1[Bezeichnung])/(FIND($C$7,Tabelle1[Bezeichnung],1)>0),ROW()-9),1),"")) ->  | I14: =IF($C$7="","",IFERROR(INDEX(I:I,_xlfn.AGGREGATE(15,6,ROW(Tabelle1[Bezeichnung])/(FIND($C$7,Tabelle1[Bezeichnung],1)>0),ROW()-9),1),"")) -> 
A15: =IF($C$7="","",IFERROR(INDEX(A:A,_xlfn.AGGREGATE(15,6,ROW(Tabelle1[Bezeichnung])/(FIND($C$7,Tabelle1[Bezeichnung],1)>0),ROW()-9),1),"")) ->  | B15: =IF($C$7="","",IFERROR(INDEX(B:B,_xlfn.AGGREGATE(15,6,ROW(Tabelle1[Bezeichnung])/(FIND($C$7,Tabelle1[Bezeichnung],1)>0),ROW()-9),1),"")) ->  | C15: =IF($C$7="","",IFERROR(INDEX(C:C,_xlfn.AGGREGATE(15,6,ROW(Tabelle1[Bezeichnung])/(FIND($C$7,Tabelle1[Bezeichnung],1)>0),ROW()-9),1),"")) ->  | D15: =IF($C$7="","",IFERROR(INDEX(D:D,_xlfn.AGGREGATE(15,6,ROW(Tabelle1[Bezeichnung])/(FIND($C$7,Tabelle1[Bezeichnung],1)>0),ROW()-9),1),"")) ->  | E15: =IF($C$7="","",IFERROR(INDEX(E:E,_xlfn.AGGREGATE(15,6,ROW(Tabelle1[Bezeichnung])/(FIND($C$7,Tabelle1[Bezeichnung],1)>0),ROW()-9),1),"")) ->  | F15: =IF($C$7="","",IFERROR(INDEX(F:F,_xlfn.AGGREGATE(15,6,ROW(Tabelle1[Bezeichnung])/(FIND($C$7,Tabelle1[Bezeichnung],1)>0),ROW()-9),1),"")) ->  | G15: =IF($C$7="","",IFERROR(INDEX(G:G,_xlfn.AGGREGATE(15,6,ROW(Tabelle1[Bezeichnung])/(FIND($C$7,Tabelle1[Bezeichnung],1)>0),ROW()-9),1),"")) ->  | H15: =IF($C$7="","",IFERROR(INDEX(H:H,_xlfn.AGGREGATE(15,6,ROW(Tabelle1[Bezeichnung])/(FIND($C$7,Tabelle1[Bezeichnung],1)>0),ROW()-9),1),"")) ->  | I15: =IF($C$7="","",IFERROR(INDEX(I:I,_xlfn.AGGREGATE(15,6,ROW(Tabelle1[Bezeichnung])/(FIND($C$7,Tabelle1[Bezeichnung],1)>0),ROW()-9),1),"")) -> 
A16: =IF($C$7="","",IFERROR(INDEX(A:A,_xlfn.AGGREGATE(15,6,ROW(Tabelle1[Bezeichnung])/(FIND($C$7,Tabelle1[Bezeichnung],1)>0),ROW()-9),1),"")) ->  | B16: =IF($C$7="","",IFERROR(INDEX(B:B,_xlfn.AGGREGATE(15,6,ROW(Tabelle1[Bezeichnung])/(FIND($C$7,Tabelle1[Bezeichnung],1)>0),ROW()-9),1),"")) ->  | C16: =IF($C$7="","",IFERROR(INDEX(C:C,_xlfn.AGGREGATE(15,6,ROW(Tabelle1[Bezeichnung])/(FIND($C$7,Tabelle1[Bezeichnung],1)>0),ROW()-9),1),"")) ->  | D16: =IF($C$7="","",IFERROR(INDEX(D:D,_xlfn.AGGREGATE(15,6,ROW(Tabelle1[Bezeichnung])/(FIND($C$7,Tabelle1[Bezeichnung],1)>0),ROW()-9),1),"")) ->  | E16: =IF($C$7="","",IFERROR(INDEX(E:E,_xlfn.AGGREGATE(15,6,ROW(Tabelle1[Bezeichnung])/(FIND($C$7,Tabelle1[Bezeichnung],1)>0),ROW()-9),1),"")) ->  | F16: =IF($C$7="","",IFERROR(INDEX(F:F,_xlfn.AGGREGATE(15,6,ROW(Tabelle1[Bezeichnung])/(FIND($C$7,Tabelle1[Bezeichnung],1)>0),ROW()-9),1),"")) ->  | G16: =IF($C$7="","",IFERROR(INDEX(G:G,_xlfn.AGGREGATE(15,6,ROW(Tabelle1[Bezeichnung])/(FIND($C$7,Tabelle1[Bezeichnung],1)>0),ROW()-9),1),"")) ->  | H16: =IF($C$7="","",IFERROR(INDEX(H:H,_xlfn.AGGREGATE(15,6,ROW(Tabelle1[Bezeichnung])/(FIND($C$7,Tabelle1[Bezeichnung],1)>0),ROW()-9),1),"")) ->  | I16: =IF($C$7="","",IFERROR(INDEX(I:I,_xlfn.AGGREGATE(15,6,ROW(Tabelle1[Bezeichnung])/(FIND($C$7,Tabelle1[Bezeichnung],1)>0),ROW()-9),1),"")) -> 
A17: =IF($C$7="","",IFERROR(INDEX(A:A,_xlfn.AGGREGATE(15,6,ROW(Tabelle1[Bezeichnung])/(FIND($C$7,Tabelle1[Bezeichnung],1)>0),ROW()-9),1),"")) ->  | B17: =IF($C$7="","",IFERROR(INDEX(B:B,_xlfn.AGGREGATE(15,6,ROW(Tabelle1[Bezeichnung])/(FIND($C$7,Tabelle1[Bezeichnung],1)>0),ROW()-9),1),"")) ->  | C17: =IF($C$7="","",IFERROR(INDEX(C:C,_xlfn.AGGREGATE(15,6,ROW(Tabelle1[Bezeichnung])/(FIND($C$7,Tabelle1[Bezeichnung],1)>0),ROW()-9),1),"")) ->  | D17: =IF($C$7="","",IFERROR(INDEX(D:D,_xlfn.AGGREGATE(15,6,ROW(Tabelle1[Bezeichnung])/(FIND($C$7,Tabelle1[Bezeichnung],1)>0),ROW()-9),1),"")) ->  | E17: =IF($C$7="","",IFERROR(INDEX(E:E,_xlfn.AGGREGATE(15,6,ROW(Tabelle1[Bezeichnung])/(FIND($C$7,Tabelle1[Bezeichnung],1)>0),ROW()-9),1),"")) ->  | F17: =IF($C$7="","",IFERROR(INDEX(F:F,_xlfn.AGGREGATE(15,6,ROW(Tabelle1[Bezeichnung])/(FIND($C$7,Tabelle1[Bezeichnung],1)>0),ROW()-9),1),"")) ->  | G17: =IF($C$7="","",IFERROR(INDEX(G:G,_xlfn.AGGREGATE(15,6,ROW(Tabelle1[Bezeichnung])/(FIND($C$7,Tabelle1[Bezeichnung],1)>0),ROW()-9),1),"")) ->  | H17: =IF($C$7="","",IFERROR(INDEX(H:H,_xlfn.AGGREGATE(15,6,ROW(Tabelle1[Bezeichnung])/(FIND($C$7,Tabelle1[Bezeichnung],1)>0),ROW()-9),1),"")) ->  | I17: =IF($C$7="","",IFERROR(INDEX(I:I,_xlfn.AGGREGATE(15,6,ROW(Tabelle1[Bezeichnung])/(FIND($C$7,Tabelle1[Bezeichnung],1)>0),ROW()-9),1),"")) -> 
A18: =IF($C$7="","",IFERROR(INDEX(A:A,_xlfn.AGGREGATE(15,6,ROW(Tabelle1[Bezeichnung])/(FIND($C$7,Tabelle1[Bezeichnung],1)>0),ROW()-9),1),"")) ->  | B18: =IF($C$7="","",IFERROR(INDEX(B:B,_xlfn.AGGREGATE(15,6,ROW(Tabelle1[Bezeichnung])/(FIND($C$7,Tabelle1[Bezeichnung],1)>0),ROW()-9),1),"")) ->  | C18: =IF($C$7="","",IFERROR(INDEX(C:C,_xlfn.AGGREGATE(15,6,ROW(Tabelle1[Bezeichnung])/(FIND($C$7,Tabelle1[Bezeichnung],1)>0),ROW()-9),1),"")) ->  | D18: =IF($C$7="","",IFERROR(INDEX(D:D,_xlfn.AGGREGATE(15,6,ROW(Tabelle1[Bezeichnung])/(FIND($C$7,Tabelle1[Bezeichnung],1)>0),ROW()-9),1),"")) ->  | E18: =IF($C$7="","",IFERROR(INDEX(E:E,_xlfn.AGGREGATE(15,6,ROW(Tabelle1[Bezeichnung])/(FIND($C$7,Tabelle1[Bezeichnung],1)>0),ROW()-9),1),"")) ->  | F18: =IF($C$7="","",IFERROR(INDEX(F:F,_xlfn.AGGREGATE(15,6,ROW(Tabelle1[Bezeichnung])/(FIND($C$7,Tabelle1[Bezeichnung],1)>0),ROW()-9),1),"")) ->  | G18: =IF($C$7="","",IFERROR(INDEX(G:G,_xlfn.AGGREGATE(15,6,ROW(Tabelle1[Bezeichnung])/(FIND($C$7,Tabelle1[Bezeichnung],1)>0),ROW()-9),1),"")) ->  | H18: =IF($C$7="","",IFERROR(INDEX(H:H,_xlfn.AGGREGATE(15,6,ROW(Tabelle1[Bezeichnung])/(FIND($C$7,Tabelle1[Bezeichnung],1)>0),ROW()-9),1),"")) ->  | I18: =IF($C$7="","",IFERROR(INDEX(I:I,_xlfn.AGGREGATE(15,6,ROW(Tabelle1[Bezeichnung])/(FIND($C$7,Tabelle1[Bezeichnung],1)>0),ROW()-9),1),"")) -> 
A19: =IF($C$7="","",IFERROR(INDEX(A:A,_xlfn.AGGREGATE(15,6,ROW(Tabelle1[Bezeichnung])/(FIND($C$7,Tabelle1[Bezeichnung],1)>0),ROW()-9),1),"")) ->  | B19: =IF($C$7="","",IFERROR(INDEX(B:B,_xlfn.AGGREGATE(15,6,ROW(Tabelle1[Bezeichnung])/(FIND($C$7,Tabelle1[Bezeichnung],1)>0),ROW()-9),1),"")) ->  | C19: =IF($C$7="","",IFERROR(INDEX(C:C,_xlfn.AGGREGATE(15,6,ROW(Tabelle1[Bezeichnung])/(FIND($C$7,Tabelle1[Bezeichnung],1)>0),ROW()-9),1),"")) ->  | D19: =IF($C$7="","",IFERROR(INDEX(D:D,_xlfn.AGGREGATE(15,6,ROW(Tabelle1[Bezeichnung])/(FIND($C$7,Tabelle1[Bezeichnung],1)>0),ROW()-9),1),"")) ->  | E19: =IF($C$7="","",IFERROR(INDEX(E:E,_xlfn.AGGREGATE(15,6,ROW(Tabelle1[Bezeichnung])/(FIND($C$7,Tabelle1[Bezeichnung],1)>0),ROW()-9),1),"")) ->  | F19: =IF($C$7="","",IFERROR(INDEX(F:F,_xlfn.AGGREGATE(15,6,ROW(Tabelle1[Bezeichnung])/(FIND($C$7,Tabelle1[Bezeichnung],1)>0),ROW()-9),1),"")) ->  | G19: =IF($C$7="","",IFERROR(INDEX(G:G,_xlfn.AGGREGATE(15,6,ROW(Tabelle1[Bezeichnung])/(FIND($C$7,Tabelle1[Bezeichnung],1)>0),ROW()-9),1),"")) ->  | H19: =IF($C$7="","",IFERROR(INDEX(H:H,_xlfn.AGGREGATE(15,6,ROW(Tabelle1[Bezeichnung])/(FIND($C$7,Tabelle1[Bezeichnung],1)>0),ROW()-9),1),"")) ->  | I19: =IF($C$7="","",IFERROR(INDEX(I:I,_xlfn.AGGREGATE(15,6,ROW(Tabelle1[Bezeichnung])/(FIND($C$7,Tabelle1[Bezeichnung],1)>0),ROW()-9),1),"")) -> 
A20: =IF($C$7="","",IFERROR(INDEX(A:A,_xlfn.AGGREGATE(15,6,ROW(Tabelle1[Bezeichnung])/(FIND($C$7,Tabelle1[Bezeichnung],1)>0),ROW()-9),1),"")) ->  | B20: =IF($C$7="","",IFERROR(INDEX(B:B,_xlfn.AGGREGATE(15,6,ROW(Tabelle1[Bezeichnung])/(FIND($C$7,Tabelle1[Bezeichnung],1)>0),ROW()-9),1),"")) ->  | C20: =IF($C$7="","",IFERROR(INDEX(C:C,_xlfn.AGGREGATE(15,6,ROW(Tabelle1[Bezeichnung])/(FIND($C$7,Tabelle1[Bezeichnung],1)>0),ROW()-9),1),"")) ->  | D20: =IF($C$7="","",IFERROR(INDEX(D:D,_xlfn.AGGREGATE(15,6,ROW(Tabelle1[Bezeichnung])/(FIND($C$7,Tabelle1[Bezeichnung],1)>0),ROW()-9),1),"")) ->  | E20: =IF($C$7="","",IFERROR(INDEX(E:E,_xlfn.AGGREGATE(15,6,ROW(Tabelle1[Bezeichnung])/(FIND($C$7,Tabelle1[Bezeichnung],1)>0),ROW()-9),1),"")) ->  | F20: =IF($C$7="","",IFERROR(INDEX(F:F,_xlfn.AGGREGATE(15,6,ROW(Tabelle1[Bezeichnung])/(FIND($C$7,Tabelle1[Bezeichnung],1)>0),ROW()-9),1),"")) ->  | G20: =IF($C$7="","",IFERROR(INDEX(G:G,_xlfn.AGGREGATE(15,6,ROW(Tabelle1[Bezeichnung])/(FIND($C$7,Tabelle1[Bezeichnung],1)>0),ROW()-9),1),"")) ->  | H20: =IF($C$7="","",IFERROR(INDEX(H:H,_xlfn.AGGREGATE(15,6,ROW(Tabelle1[Bezeichnung])/(FIND($C$7,Tabelle1[Bezeichnung],1)>0),ROW()-9),1),"")) ->  | I20: =IF($C$7="","",IFERROR(INDEX(I:I,_xlfn.AGGREGATE(15,6,ROW(Tabelle1[Bezeichnung])/(FIND($C$7,Tabelle1[Bezeichnung],1)>0),ROW()-9),1),"")) -> 
A21: =IF($C$7="","",IFERROR(INDEX(A:A,_xlfn.AGGREGATE(15,6,ROW(Tabelle1[Bezeichnung])/(FIND($C$7,Tabelle1[Bezeichnung],1)>0),ROW()-9),1),"")) ->  | B21: =IF($C$7="","",IFERROR(INDEX(B:B,_xlfn.AGGREGATE(15,6,ROW(Tabelle1[Bezeichnung])/(FIND($C$7,Tabelle1[Bezeichnung],1)>0),ROW()-9),1),"")) ->  | C21: =IF($C$7="","",IFERROR(INDEX(C:C,_xlfn.AGGREGATE(15,6,ROW(Tabelle1[Bezeichnung])/(FIND($C$7,Tabelle1[Bezeichnung],1)>0),ROW()-9),1),"")) ->  | D21: =IF($C$7="","",IFERROR(INDEX(D:D,_xlfn.AGGREGATE(15,6,ROW(Tabelle1[Bezeichnung])/(FIND($C$7,Tabelle1[Bezeichnung],1)>0),ROW()-9),1),"")) ->  | E21: =IF($C$7="","",IFERROR(INDEX(E:E,_xlfn.AGGREGATE(15,6,ROW(Tabelle1[Bezeichnung])/(FIND($C$7,Tabelle1[Bezeichnung],1)>0),ROW()-9),1),"")) ->  | F21: =IF($C$7="","",IFERROR(INDEX(F:F,_xlfn.AGGREGATE(15,6,ROW(Tabelle1[Bezeichnung])/(FIND($C$7,Tabelle1[Bezeichnung],1)>0),ROW()-9),1),"")) ->  | G21: =IF($C$7="","",IFERROR(INDEX(G:G,_xlfn.AGGREGATE(15,6,ROW(Tabelle1[Bezeichnung])/(FIND($C$7,Tabelle1[Bezeichnung],1)>0),ROW()-9),1),"")) ->  | H21: =IF($C$7="","",IFERROR(INDEX(H:H,_xlfn.AGGREGATE(15,6,ROW(Tabelle1[Bezeichnung])/(FIND($C$7,Tabelle1[Bezeichnung],1)>0),ROW()-9),1),"")) ->  | I21: =IF($C$7="","",IFERROR(INDEX(I:I,_xlfn.AGGREGATE(15,6,ROW(Tabelle1[Bezeichnung])/(FIND($C$7,Tabelle1[Bezeichnung],1)>0),ROW()-9),1),"")) -> 
A22: =IF($C$7="","",IFERROR(INDEX(A:A,_xlfn.AGGREGATE(15,6,ROW(Tabelle1[Bezeichnung])/(FIND($C$7,Tabelle1[Bezeichnung],1)>0),ROW()-9),1),"")) ->  | B22: =IF($C$7="","",IFERROR(INDEX(B:B,_xlfn.AGGREGATE(15,6,ROW(Tabelle1[Bezeichnung])/(FIND($C$7,Tabelle1[Bezeichnung],1)>0),ROW()-9),1),"")) ->  | C22: =IF($C$7="","",IFERROR(INDEX(C:C,_xlfn.AGGREGATE(15,6,ROW(Tabelle1[Bezeichnung])/(FIND($C$7,Tabelle1[Bezeichnung],1)>0),ROW()-9),1),"")) ->  | D22: =IF($C$7="","",IFERROR(INDEX(D:D,_xlfn.AGGREGATE(15,6,ROW(Tabelle1[Bezeichnung])/(FIND($C$7,Tabelle1[Bezeichnung],1)>0),ROW()-9),1),"")) ->  | E22: =IF($C$7="","",IFERROR(INDEX(E:E,_xlfn.AGGREGATE(15,6,ROW(Tabelle1[Bezeichnung])/(FIND($C$7,Tabelle1[Bezeichnung],1)>0),ROW()-9),1),"")) ->  | F22: =IF($C$7="","",IFERROR(INDEX(F:F,_xlfn.AGGREGATE(15,6,ROW(Tabelle1[Bezeichnung])/(FIND($C$7,Tabelle1[Bezeichnung],1)>0),ROW()-9),1),"")) ->  | G22: =IF($C$7="","",IFERROR(INDEX(G:G,_xlfn.AGGREGATE(15,6,ROW(Tabelle1[Bezeichnung])/(FIND($C$7,Tabelle1[Bezeichnung],1)>0),ROW()-9),1),"")) ->  | H22: =IF($C$7="","",IFERROR(INDEX(H:H,_xlfn.AGGREGATE(15,6,ROW(Tabelle1[Bezeichnung])/(FIND($C$7,Tabelle1[Bezeichnung],1)>0),ROW()-9),1),"")) ->  | I22: =IF($C$7="","",IFERROR(INDEX(I:I,_xlfn.AGGREGATE(15,6,ROW(Tabelle1[Bezeichnung])/(FIND($C$7,Tabelle1[Bezeichnung],1)>0),ROW()-9),1),"")) -> 
A23: =IF($C$7="","",IFERROR(INDEX(A:A,_xlfn.AGGREGATE(15,6,ROW(Tabelle1[Bezeichnung])/(FIND($C$7,Tabelle1[Bezeichnung],1)>0),ROW()-9),1),"")) ->  | B23: =IF($C$7="","",IFERROR(INDEX(B:B,_xlfn.AGGREGATE(15,6,ROW(Tabelle1[Bezeichnung])/(FIND($C$7,Tabelle1[Bezeichnung],1)>0),ROW()-9),1),"")) ->  | C23: =IF($C$7="","",IFERROR(INDEX(C:C,_xlfn.AGGREGATE(15,6,ROW(Tabelle1[Bezeichnung])/(FIND($C$7,Tabelle1[Bezeichnung],1)>0),ROW()-9),1),"")) ->  | D23: =IF($C$7="","",IFERROR(INDEX(D:D,_xlfn.AGGREGATE(15,6,ROW(Tabelle1[Bezeichnung])/(FIND($C$7,Tabelle1[Bezeichnung],1)>0),ROW()-9),1),"")) ->  | E23: =IF($C$7="","",IFERROR(INDEX(E:E,_xlfn.AGGREGATE(15,6,ROW(Tabelle1[Bezeichnung])/(FIND($C$7,Tabelle1[Bezeichnung],1)>0),ROW()-9),1),"")) ->  | F23: =IF($C$7="","",IFERROR(INDEX(F:F,_xlfn.AGGREGATE(15,6,ROW(Tabelle1[Bezeichnung])/(FIND($C$7,Tabelle1[Bezeichnung],1)>0),ROW()-9),1),"")) ->  | G23: =IF($C$7="","",IFERROR(INDEX(G:G,_xlfn.AGGREGATE(15,6,ROW(Tabelle1[Bezeichnung])/(FIND($C$7,Tabelle1[Bezeichnung],1)>0),ROW()-9),1),"")) ->  | H23: =IF($C$7="","",IFERROR(INDEX(H:H,_xlfn.AGGREGATE(15,6,ROW(Tabelle1[Bezeichnung])/(FIND($C$7,Tabelle1[Bezeichnung],1)>0),ROW()-9),1),"")) ->  | I23: =IF($C$7="","",IFERROR(INDEX(I:I,_xlfn.AGGREGATE(15,6,ROW(Tabelle1[Bezeichnung])/(FIND($C$7,Tabelle1[Bezeichnung],1)>0),ROW()-9),1),"")) -> 
A25: Katalog | B25: Pos. Nr. | C25: Bezeichnung | D25: Einheit | E25: EP | F25: INDEXPREIS | G25: Von | H25: Mittel | I25: Bis
C26: Vorarbeiten
B27: 1 | C27: Untergrund der Betonbodenplatte von Verschmutzungen reinigen und entsorgen | D27: m² | E27: 2.2 | F27: =Tabelle1[[#This Row],[EP]]*MAIN!$H$10 -> 2.596838095 | G27: =Tabelle1[[#This Row],[INDEXPREIS]]*0.85 -> 2.207312381 | H27: =Tabelle1[[#This Row],[INDEXPREIS]] -> 2.596838095 | I27: =Tabelle1[[#This Row],[EP]]*1.2 -> 2.64 | J27: =IF(Tabelle1[[#This Row],[EP]]>0,1,0) -> 1
B28: =B27+1 -> 2 | C28: Schutt an den Abdichtungsflächen zusammentragen und entsorgen | D28: m³ | E28: 34 | F28: =Tabelle1[[#This Row],[EP]]*MAIN!$H$10 -> 40.13295238 | G28: =Tabelle1[[#This Row],[INDEXPREIS]]*0.85 -> 34.11300952 | H28: =Tabelle1[[#This Row],[INDEXPREIS]] -> 40.13295238 | I28: =Tabelle1[[#This Row],[EP]]*1.2 -> 40.8 | J28: =IF(Tabelle1[[#This Row],[EP]]>0,1,0) -> 1
B29: =B28+1 -> 3 | C29: Trocknen des Untergrundes von Boden-und Wandflächen | D29: m² | E29: 3.1 | F29: =Tabelle1[[#This Row],[EP]]*MAIN!$H$10 -> 3.659180952 | G29: =Tabelle1[[#This Row],[INDEXPREIS]]*0.85 -> 3.11030381 | H29: =Tabelle1[[#This Row],[INDEXPREIS]] -> 3.659180952 | I29: =Tabelle1[[#This Row],[EP]]*1.2 -> 3.72 | J29: =IF(Tabelle1[[#This Row],[EP]]>0,1,0) -> 1
B30: 4 | C30: Betonflächen von haftungsmindernden Rückständen und Verunreinigungen abschleifen | D30: m² | E30: 8.7 | F30: =Tabelle1[[#This Row],[EP]]*MAIN!$H$10 -> 10.26931429 | G30: =Tabelle1[[#This Row],[INDEXPREIS]]*0.85 -> 8.728917143 | H30: =Tabelle1[[#This Row],[INDEXPREIS]] -> 10.26931429 | I30: =Tabelle1[[#This Row],[EP]]*1.2 -> 10.44 | J30: =IF(Tabelle1[[#This Row],[EP]]>0,1,0) -> 1
B31: 5 | C31: Betonflächen mit Spachtelmasse bis 10mm egalisieren | D31: m² | E31: 20.5 | F31: =Tabelle1[[#This Row],[EP]]*MAIN!$H$10 -> 24.19780952 | G31: =Tabelle1[[#This Row],[INDEXPREIS]]*0.85 -> 20.5681381 | H31: =Tabelle1[[#This Row],[INDEXPREIS]] -> 24.19780952 | I31: =Tabelle1[[#This Row],[EP]]*1.2 -> 24.6 | J31: =IF(Tabelle1[[#This Row],[EP]]>0,1,0) -> 1
B32: 6 | C32: Trennlage unterhalb von Bodenplatten mit PE-Folie 0,2mm auf Perimeterdämmung oder Kiesfilterschicht stossüberlappend verlegen | D32: m² | E32: 1.9 | F32: =Tabelle1[[#This Row],[EP]]*MAIN!$H$10 -> 2.24272381 | G32: =Tabelle1[[#This Row],[INDEXPREIS]]*0.85 -> 1.906315238 | H32: =Tabelle1[[#This Row],[INDEXPREIS]] -> 2.24272381 | I32: =Tabelle1[[#This Row],[EP]]*1.2 -> 2.28 | J32: =IF(Tabelle1[[#This Row],[EP]]>0,1,0) -> 1
B33: 7 | C33: Voranstrich für Bitumenbahn auf gereinigten Boden-und Deckenflächen | D33: m² | E33: 2.9 | F33: =Tabelle1[[#This Row],[EP]]*MAIN!$H$10 -> 3.423104762 | G33: =Tabelle1[[#This Row],[INDEXPREIS]]*0.85 -> 2.909639048 | H33: =Tabelle1[[#This Row],[INDEXPREIS]] -> 3.423104762 | I33: =Tabelle1[[#This Row],[EP]]*1.2 -> 3.48 | J33: =IF(Tabelle1[[#This Row],[EP]]>0,1,0) -> 1
B34: 8 | C34: Grundierung d. Bodenflächen aus Kunstharz f. Verbundabd. | D34: m² | E34: 3.4 | F34: =Tabelle1[[#This Row],[EP]]*MAIN!$H$10 -> 4.013295238 | G34: =Tabelle1[[#This Row],[INDEXPREIS]]*0.85 -> 3.411300952 | H34: =Tabelle1[[#This Row],[INDEXPREIS]] -> 4.013295238 | I34: =Tabelle1[[#This Row],[EP]]*1.2 -> 4.08 | J34: =IF(Tabelle1[[#This Row],[EP]]>0,1,0) -> 1
B35: 9 | C35: Voranstrich mit Bitumen.Emulsion auf Wandflächen | D35: m² | E35: 3.3 | F35: =Tabelle1[[#This Row],[EP]]*MAIN!$H$10 -> 3.895257143 | G35: =Tabelle1[[#This Row],[INDEXPREIS]]*0.85 -> 3.310968571 | H35: =Tabelle1[[#This Row],[INDEXPREIS]] -> 3.895257143 | I35: =Tabelle1[[#This Row],[EP]]*1.2 -> 3.96 | J35: =IF(Tabelle1[[#This Row],[EP]]>0,1,0) -> 1
J36: =IF(Tabelle1[[#This Row],[EP]]>0,1,0) -> 0
C37: Abdichtung mit Bitumenbahnen | J37: =IF(Tabelle1[[#This Row],[EP]]>0,1,0) -> 0
B38: =B35+1 -> 10 | C38: Hohlkehle gerundet zwischen Fundament und Wand mit zementgebundener Dichtungsschlämme abdichten | D38: m | E38: 9.8 | F38: =Tabelle1[[#This Row],[EP]]*MAIN!$H$10 -> 11.56773333 | G38: =Tabelle1[[#This Row],[INDEXPREIS]]*0.85 -> 9.832573333 | H38: =Tabelle1[[#This Row],[INDEXPREIS]] -> 11.56773333 | I38: =Tabelle1[[#This Row],[EP]]*1.2 -> 11.76 | J38: =IF(Tabelle1[[#This Row],[EP]]>0,1,0) -> 1
B39: =B38+1 -> 11 | C39: Hohlkehle gerundet wie vor mit bituminöser Dickbe-schichtung | D39: m | E39: 10.4 | F39: =Tabelle1[[#This Row],[EP]]*MAIN!$H$10 -> 12.2759619 | G39: =Tabelle1[[#This Row],[INDEXPREIS]]*0.85 -> 10.43456762 | H39: =Tabelle1[[#This Row],[INDEXPREIS]] -> 12.2759619 | I39: =Tabelle1[[#This Row],[EP]]*1.2 -> 12.48 | J39: =IF(Tabelle1[[#This Row],[EP]]>0,1,0) -> 1
B40: =B39+1 -> 12 | C40: Abdichtung an aufgehende Wandbauteile als Übergang von Bodenplatte/Wand, rechtwinkelig verklebt | D40: m | E40: 4.9 | F40: =Tabelle1[[#This Row],[EP]]*MAIN!$H$10 -> 5.783866667 | G40: =Tabelle1[[#This Row],[INDEXPREIS]]*0.85 -> 4.916286667 | H40: =Tabelle1[[#This Row],[INDEXPREIS]] -> 5.783866667 | I40: =Tabelle1[[#This Row],[EP]]*1.2 -> 5.88 | J40: =IF(Tabelle1[[#This Row],[EP]]>0,1,0) -> 1
B41: 13 | C41: Bitumen-Schweissbahn BA G200 S4, einlagig, vollflächig und stossüberlappend auf Bodenplatte im Schweißverfahren | D41: m² | E41: 14.4 | F41: =Tabelle1[[#This Row],[EP]]*MAIN!$H$10 -> 16.99748571 | G41: =Tabelle1[[#This Row],[INDEXPREIS]]*0.85 -> 14.44786286 | H41: =Tabelle1[[#This Row],[INDEXPREIS]] -> 16.99748571 | I41: =Tabelle1[[#This Row],[EP]]*1.2 -> 17.28 | J41: =IF(Tabelle1[[#This Row],[EP]]>0,1,0) -> 1
B42: 14 | C42: Bitumenbahn R500N 3-Lag. im Bürsten-Streichverfahren auf Bodenflächen | D42: m² | E42: 22.7 | F42: =Tabelle1[[#This Row],[EP]]*MAIN!$H$10 -> 26.79464762 | G42: =Tabelle1[[#This Row],[INDEXPREIS]]*0.85 -> 22.77545048 | H42: =Tabelle1[[#This Row],[INDEXPREIS]] -> 26.79464762 | I42: =Tabelle1[[#This Row],[EP]]*1.2 -> 27.24 | J42: =IF(Tabelle1[[#This Row],[EP]]>0,1,0) -> 1
B43: 15 | C43: Bitumenbahn R500N 3-lag. wie vor auf Wandflächen | D43: m² | E43: 23.8 | F43: =Tabelle1[[#This Row],[EP]]*MAIN!$H$10 -> 28.09306667 | G43: =Tabelle1[[#This Row],[INDEXPREIS]]*0.85 -> 23.87910667 | H43: =Tabelle1[[#This Row],[INDEXPREIS]] -> 28.09306667 | I43: =Tabelle1[[#This Row],[EP]]*1.2 -> 28.56 | J43: =IF(Tabelle1[[#This Row],[EP]]>0,1,0) -> 1
B44: 16 | C44: Bitumenbahn R500N 3-lag. im Gieß-u..Einwälzverfahren für Wand-u. Bodenflächen | D44: m² | E44: 28.5 | F44: =Tabelle1[[#This Row],[EP]]*MAIN!$H$10 -> 33.64085714 | G44: =Tabelle1[[#This Row],[INDEXPREIS]]*0.85 -> 28.59472857 | H44: =Tabelle1[[#This Row],[INDEXPREIS]] -> 33.64085714 | I44: =Tabelle1[[#This Row],[EP]]*1.2 -> 34.2 | J44: =IF(Tabelle1[[#This Row],[EP]]>0,1,0) -> 1
B45: 17 | C45: Polymerbitumen-Dachdichtungsbahn BA PYE-PV200 1-lag.,Ober-u. Unterseite besandet im Gieß-u. Einrollverfahr. | D45: m² | E45: 15.8 | F45: =Tabelle1[[#This Row],[EP]]*MAIN!$H$10 -> 18.65001905 | G45: =Tabelle1[[#This Row],[INDEXPREIS]]*0.85 -> 15.85251619 | H45: =Tabelle1[[#This Row],[INDEXPREIS]] -> 18.65001905 | I45: =Tabelle1[[#This Row],[EP]]*1.2 -> 18.96 | J45: =IF(Tabelle1[[#This Row],[EP]]>0,1,0) -> 1
J46: =IF(Tabelle1[[#This Row],[EP]]>0,1,0) -> 0
C47: Abdichtung mit Kunststoffbahnen | J47: =IF(Tabelle1[[#This Row],[EP]]>0,1,0) -> 0
B48: =B45+1 -> 18 | C48: Kunststoffbahn aus PVC--P-NB 1,2, 1-lagig, lose verlegt auf Bodenplatte | D48: m² | E48: 15.7 | F48: =Tabelle1[[#This Row],[EP]]*MAIN!$H$10 -> 18.53198095 | G48: =Tabelle1[[#This Row],[INDEXPREIS]]*0.85 -> 15.75218381 | H48: =Tabelle1[[#This Row],[INDEXPREIS]] -> 18.53198095 | I48: =Tabelle1[[#This Row],[EP]]*1.2 -> 18.84 | J48: =IF(Tabelle1[[#This Row],[EP]]>0,1,0) -> 1
B49: =B48+1 -> 19 | C49: Kunststoffbahn aus PVC- P-NB 1,5, einlagig, im Bürstenstreichverfahren verkleben | D49: m² | E49: 29.7 | F49: =Tabelle1[[#This Row],[EP]]*MAIN!$H$10 -> 35.05731429 | G49: =Tabelle1[[#This Row],[INDEXPREIS]]*0.85 -> 29.79871714 | H49: =Tabelle1[[#This Row],[INDEXPREIS]] -> 35.05731429 | I49: =Tabelle1[[#This Row],[EP]]*1.2 -> 35.64 | J49: =IF(Tabelle1[[#This Row],[EP]]>0,1,0) -> 1
B50: =B49+1 -> 20 | C50: Elastomerbahn EPDM, einlagig mit Schweißrand d=1,2mm auf Betonsohle mit PU-Kleber | D50: m² | E50: 25.6 | F50: =Tabelle1[[#This Row],[EP]]*MAIN!$H$10 -> 30.21775238 | G50: =Tabelle1[[#This Row],[INDEXPREIS]]*0.85 -> 25.68508952 | H50: =Tabelle1[[#This Row],[INDEXPREIS]] -> 30.21775238 | I50: =Tabelle1[[#This Row],[EP]]*1.2 -> 30.72 | J50: =IF(Tabelle1[[#This Row],[EP]]>0,1,0) -> 1
B51: 21 | C51: Kunststoffbahn PVC-P-BV1,5 im Selbstklebeverfahren | D51: m² | E51: 30.5 | F51: =Tabelle1[[#This Row],[EP]]*MAIN!$H$10 -> 36.00161905 | G51: =Tabelle1[[#This Row],[INDEXPREIS]]*0.85 -> 30.60137619 | H51: =Tabelle1[[#This Row],[INDEXPREIS]] -> 36.00161905 | I51: =Tabelle1[[#This Row],[EP]]*1.2 -> 36.6 | J51: =IF(Tabelle1[[#This Row],[EP]]>0,1,0) -> 1
J52: =IF(Tabelle1[[#This Row],[EP]]>0,1,0) -> 0
C53: Horizontalabdichtung | J53: =IF(Tabelle1[[#This Row],[EP]]>0,1,0) -> 0
B54: =B51+1 -> 22 | C54: Querschnittsabdichtung mit Kunststoffbahn PVC-P-BV1,5 1-lag., lose verlegt | D54: m² | E54: 9.7 | F54: =Tabelle1[[#This Row],[EP]]*MAIN!$H$10 -> 11.44969524 | G54: =Tabelle1[[#This Row],[INDEXPREIS]]*0.85 -> 9.732240952 | H54: =Tabelle1[[#This Row],[INDEXPREIS]] -> 11.44969524 | I54: =Tabelle1[[#This Row],[EP]]*1.2 -> 11.64 | J54: =IF(Tabelle1[[#This Row],[EP]]>0,1,0) -> 1
B55: =B54+1 -> 23 | C55: Querschnittsabdichtung m. Bitumenbahn G200DD 1-lag. b=24cm gegen aufsteigende Feucjhtigkeit | D55: m² | E55: 5.9 | F55: =Tabelle1[[#This Row],[EP]]*MAIN!$H$10 -> 6.964247619 | G55: =Tabelle1[[#This Row],[INDEXPREIS]]*0.85 -> 5.919610476 | H55: =Tabelle1[[#This Row],[INDEXPREIS]] -> 6.964247619 | I55: =Tabelle1[[#This Row],[EP]]*1.2 -> 7.08 | J55: =IF(Tabelle1[[#This Row],[EP]]>0,1,0) -> 1
B56: =B55+1 -> 24 | C56: Querschnittsabdichtung wie vor, b=36,5cm | D56: m² | E56: 9.4 | F56: =Tabelle1[[#This Row],[EP]]*MAIN!$H$10 -> 11.09558095 | G56: =Tabelle1[[#This Row],[INDEXPREIS]]*0.85 -> 9.43124381 | H56: =Tabelle1[[#This Row],[INDEXPREIS]] -> 11.09558095 | I56: =Tabelle1[[#This Row],[EP]]*1.2 -> 11.28 | J56: =IF(Tabelle1[[#This Row],[EP]]>0,1,0) -> 1
B57: 25 | C57: Horizontalabdichtung von Mauerwerk nachträglich mit WU-Mörtel in Bohrlochreihe | D57: m | E57: 88.5 | F57: =Tabelle1[[#This Row],[EP]]*MAIN!$H$10 -> 104.4637143 | G57: =Tabelle1[[#This Row],[INDEXPREIS]]*0.85 -> 88.79415714 | H57: =Tabelle1[[#This Row],[INDEXPREIS]] -> 104.4637143 | I57: =Tabelle1[[#This Row],[EP]]*1.2 -> 106.2 | J57: =IF(Tabelle1[[#This Row],[EP]]>0,1,0) -> 1
B58: 26 | C58: Horizontalabdichtung von Mauerwerk nachträglich mit Einbau von nicht rostenden Stahlblechen | D58: m | E58: 110 | F58: =Tabelle1[[#This Row],[EP]]*MAIN!$H$10 -> 129.8419048 | G58: =Tabelle1[[#This Row],[INDEXPREIS]]*0.85 -> 110.365619 | H58: =Tabelle1[[#This Row],[INDEXPREIS]] -> 129.8419048 | I58: =Tabelle1[[#This Row],[EP]]*1.2 -> 132 | J58: =IF(Tabelle1[[#This Row],[EP]]>0,1,0) -> 1
B59: 27 | C59: Löcher für Druckinjektion bohren und wieder mit Mörtelmasse verschliessen | D59: St | E59: 8.2 | F59: =Tabelle1[[#This Row],[EP]]*MAIN!$H$10 -> 9.67912381 | G59: =Tabelle1[[#This Row],[INDEXPREIS]]*0.85 -> 8.227255238 | H59: =Tabelle1[[#This Row],[INDEXPREIS]] -> 9.67912381 | I59: =Tabelle1[[#This Row],[EP]]*1.2 -> 9.84 | J59: =IF(Tabelle1[[#This Row],[EP]]>0,1,0) -> 1
J60: =IF(Tabelle1[[#This Row],[EP]]>0,1,0) -> 0
C61: Abdichtung mit Beschichtungen | J61: =IF(Tabelle1[[#This Row],[EP]]>0,1,0) -> 0
B62: =B59+1 -> 28 | C62: Trenn-u. Schutzschicht aus Rohglasvlies 100g/m², 1-lag. auf Betonplatte | D62: m² | E62: 3.6 | F62: =Tabelle1[[#This Row],[EP]]*MAIN!$H$10 -> 4.249371429 | G62: =Tabelle1[[#This Row],[INDEXPREIS]]*0.85 -> 3.611965714 | H62: =Tabelle1[[#This Row],[INDEXPREIS]] -> 4.249371429 | I62: =Tabelle1[[#This Row],[EP]]*1.2 -> 4.32 | J62: =IF(Tabelle1[[#This Row],[EP]]>0,1,0) -> 1
B63: =B62+1 -> 29 | C63: Trenn-u. Schutzschicht wie vor auf Aussenwandflächen | D63: m² | E63: 4.1 | F63: =Tabelle1[[#This Row],[EP]]*MAIN!$H$10 -> 4.839561905 | G63: =Tabelle1[[#This Row],[INDEXPREIS]]*0.85 -> 4.113627619 | H63: =Tabelle1[[#This Row],[INDEXPREIS]] -> 4.839561905 | I63: =Tabelle1[[#This Row],[EP]]*1.2 -> 4.92 | J63: =IF(Tabelle1[[#This Row],[EP]]>0,1,0) -> 1
B64: =B63+1 -> 30 | C64: Abdichtung von Betonbodenflächen mit Bitumen-dickbeschichtung 3mm einschl. einer Gewebeeinlage | D64: m² | E64: 22.6 | F64: =Tabelle1[[#This Row],[EP]]*MAIN!$H$10 -> 26.67660952 | G64: =Tabelle1[[#This Row],[INDEXPREIS]]*0.85 -> 22.6751181 | H64: =Tabelle1[[#This Row],[INDEXPREIS]] -> 26.67660952 | I64: =Tabelle1[[#This Row],[EP]]*1.2 -> 27.12 | J64: =IF(Tabelle1[[#This Row],[EP]]>0,1,0) -> 1
B65: 31 | C65: Abdichtung von Betonbodenflächen mit flexibler, mineralischen Dichtungsschlämme 3mm einschl. Gewebeeinlage | D65: m² | E65: 28.4 | F65: =Tabelle1[[#This Row],[EP]]*MAIN!$H$10 -> 33.52281905 | G65: =Tabelle1[[#This Row],[INDEXPREIS]]*0.85 -> 28.49439619 | H65: =Tabelle1[[#This Row],[INDEXPREIS]] -> 33.52281905 | I65: =Tabelle1[[#This Row],[EP]]*1.2 -> 34.08 | J65: =IF(Tabelle1[[#This Row],[EP]]>0,1,0) -> 1
B66: 32 | C66: Wandflächen für Voranstrich abbürsten und reinigen | D66: m² | E66: 7.6 | F66: =Tabelle1[[#This Row],[EP]]*MAIN!$H$10 -> 8.970895238 | G66: =Tabelle1[[#This Row],[INDEXPREIS]]*0.85 -> 7.625260952 | H66: =Tabelle1[[#This Row],[INDEXPREIS]] -> 8.970895238 | I66: =Tabelle1[[#This Row],[EP]]*1.2 -> 9.12 | J66: =IF(Tabelle1[[#This Row],[EP]]>0,1,0) -> 1
B67: 33 | C67: Voranstrich für Wandabdichtung mit Bitumenemulsion auf Wandfläche vollflächig aufbringen | D67: m² | E67: 3.2 | F67: =Tabelle1[[#This Row],[EP]]*MAIN!$H$10 -> 3.777219048 | G67: =Tabelle1[[#This Row],[INDEXPREIS]]*0.85 -> 3.21063619 | H67: =Tabelle1[[#This Row],[INDEXPREIS]] -> 3.777219048 | I67: =Tabelle1[[#This Row],[EP]]*1.2 -> 3.84 | J67: =IF(Tabelle1[[#This Row],[EP]]>0,1,0) -> 1
B68: 34 | C68: Ausgleichsputz aus Zementmörtel d=1,5cm auf Kelleraussenwänden als Tragschicht aufbringen | D68: m² | E68: 19.6 | F68: =Tabelle1[[#This Row],[EP]]*MAIN!$H$10 -> 23.13546667 | G68: =Tabelle1[[#This Row],[INDEXPREIS]]*0.85 -> 19.66514667 | H68: =Tabelle1[[#This Row],[INDEXPREIS]] -> 23.13546667 | I68: =Tabelle1[[#This Row],[EP]]*1.2 -> 23.52 | J68: =IF(Tabelle1[[#This Row],[EP]]>0,1,0) -> 1
B69: 35 | C69: Wandabdichtung für erdberührte Aussenwände gegen Bodenfeuchte und nicht stauendes Sickerwasser mit kunststoffmodif. Bitumendickbeschichtung 3mm | D69: m² | E69: 29.6 | F69: =Tabelle1[[#This Row],[EP]]*MAIN!$H$10 -> 34.93927619 | G69: =Tabelle1[[#This Row],[INDEXPREIS]]*0.85 -> 29.69838476 | H69: =Tabelle1[[#This Row],[INDEXPREIS]] -> 34.93927619 | I69: =Tabelle1[[#This Row],[EP]]*1.2 -> 35.52 | J69: =IF(Tabelle1[[#This Row],[EP]]>0,1,0) -> 1
B70: 36 | C70: Wandabdichtung für Aussenwände gegen aufstauendes Sickerwasser mit zementgebundener, starrer Dichtungs-schlämme 3mm | D70: m² | E70: 28.7 | F70: =Tabelle1[[#This Row],[EP]]*MAIN!$H$10 -> 33.87693333 | G70: =Tabelle1[[#This Row],[INDEXPREIS]]*0.85 -> 28.79539333 | H70: =Tabelle1[[#This Row],[INDEXPREIS]] -> 33.87693333 | I70: =Tabelle1[[#This Row],[EP]]*1.2 -> 34.44 | J70: =IF(Tabelle1[[#This Row],[EP]]>0,1,0) -> 1
B71: 37 | C71: Wandabdichtung gegen nicht drückendes Wasser mit zementgebundener Dichtungsschlämme d=3mm | D71: m² | E71: 18.8 | F71: =Tabelle1[[#This Row],[EP]]*MAIN!$H$10 -> 22.1911619 | G71: =Tabelle1[[#This Row],[INDEXPREIS]]*0.85 -> 18.86248762 | H71: =Tabelle1[[#This Row],[INDEXPREIS]] -> 22.1911619 | I71: =Tabelle1[[#This Row],[EP]]*1.2 -> 22.56 | J71: =IF(Tabelle1[[#This Row],[EP]]>0,1,0) -> 1
B72: 38 | C72: Wandabdichtung wie vor mit kunststoffmodifizierter Dickbe-schichtung d=4,0mm mit Gewebeeinlage | D72: m² | E72: 20.4 | F72: =Tabelle1[[#This Row],[EP]]*MAIN!$H$10 -> 24.07977143 | G72: =Tabelle1[[#This Row],[INDEXPREIS]]*0.85 -> 20.46780571 | H72: =Tabelle1[[#This Row],[INDEXPREIS]] -> 24.07977143 | I72: =Tabelle1[[#This Row],[EP]]*1.2 -> 24.48 | J72: =IF(Tabelle1[[#This Row],[EP]]>0,1,0) -> 1
B73: 39 | C73: Wandabdichtung gegen drückendes Wasser mit Bitumenbahn G200DD und Polymer-Schweißbahn PV 200DD | D73: m² | E73: 28.5 | F73: =Tabelle1[[#This Row],[EP]]*MAIN!$H$10 -> 33.64085714 | G73: =Tabelle1[[#This Row],[INDEXPREIS]]*0.85 -> 28.59472857 | H73: =Tabelle1[[#This Row],[INDEXPREIS]] -> 33.64085714 | I73: =Tabelle1[[#This Row],[EP]]*1.2 -> 34.2 | J73: =IF(Tabelle1[[#This Row],[EP]]>0,1,0) -> 1
B74: 40 | C74: Wandabdichtung gegen drückendes Wasser mit Bitumenbahn R500N mit Kupfer-oder Alu-Trägereinlage, mehrlag. | D74: m² | E74: 37.6 | F74: =Tabelle1[[#This Row],[EP]]*MAIN!$H$10 -> 44.38232381 | G74: =Tabelle1[[#This Row],[INDEXPREIS]]*0.85 -> 37.72497524 | H74: =Tabelle1[[#This Row],[INDEXPREIS]] -> 44.38232381 | I74: =Tabelle1[[#This Row],[EP]]*1.2 -> 45.12 | J74: =IF(Tabelle1[[#This Row],[EP]]>0,1,0) -> 1
B75: 41 | C75: Wandabdichtung innenseitig von erdberührten Betonwänden mit mineralisch gebundener Dichtungsschlämme 3mm | D75: m² | E75: 27.6 | F75: =Tabelle1[[#This Row],[EP]]*MAIN!$H$10 -> 32.57851429 | G75: =Tabelle1[[#This Row],[INDEXPREIS]]*0.85 -> 27.69173714 | H75: =Tabelle1[[#This Row],[INDEXPREIS]] -> 32.57851429 | I75: =Tabelle1[[#This Row],[EP]]*1.2 -> 33.12 | J75: =IF(Tabelle1[[#This Row],[EP]]>0,1,0) -> 1
J76: =IF(Tabelle1[[#This Row],[EP]]>0,1,0) -> 0
C77: Fugen | J77: =IF(Tabelle1[[#This Row],[EP]]>0,1,0) -> 0
B78: =B75+1 -> 42 | C78: Nachbehandlung von Naht-und Stossverbindungen mit PVC-Lösung | D78: m | E78: 7.1 | F78: =Tabelle1[[#This Row],[EP]]*MAIN!$H$10 -> 8.380704762 | G78: =Tabelle1[[#This Row],[INDEXPREIS]]*0.85 -> 7.123599048 | H78: =Tabelle1[[#This Row],[INDEXPREIS]] -> 8.380704762 | I78: =Tabelle1[[#This Row],[EP]]*1.2 -> 8.52 | J78: =IF(Tabelle1[[#This Row],[EP]]>0,1,0) -> 1
B79: =B78+1 -> 43 | C79: Bewegungsfugen in Bodenplatten mit Bitumenschweissbahn PYE-PV b=500mm abdichten | D79: m | E79: 24.8 | F79: =Tabelle1[[#This Row],[EP]]*MAIN!$H$10 -> 29.27344762 | G79: =Tabelle1[[#This Row],[INDEXPREIS]]*0.85 -> 24.88243048 | H79: =Tabelle1[[#This Row],[INDEXPREIS]] -> 29.27344762 | I79: =Tabelle1[[#This Row],[EP]]*1.2 -> 29.76 | J79: =IF(Tabelle1[[#This Row],[EP]]>0,1,0) -> 1
B80: =B79+1 -> 44 | C80: Bewegungsfugen gegen drückendes Wasser mit Kunststoff-bahn d=2mm flächig abdichten | D80: m | E80: 19.6 | F80: =Tabelle1[[#This Row],[EP]]*MAIN!$H$10 -> 23.13546667 | G80: =Tabelle1[[#This Row],[INDEXPREIS]]*0.85 -> 19.66514667 | H80: =Tabelle1[[#This Row],[INDEXPREIS]] -> 23.13546667 | I80: =Tabelle1[[#This Row],[EP]]*1.2 -> 23.52 | J80: =IF(Tabelle1[[#This Row],[EP]]>0,1,0) -> 1
B81: 45 | C81: Bewegungsfugen gegen drückendes Wasser mit Kupferband und aufgeschweisster Bitumenbahn b=300mm abdichten | D81: m | E81: 28.3 | F81: =Tabelle1[[#This Row],[EP]]*MAIN!$H$10 -> 33.40478095 | G81: =Tabelle1[[#This Row],[INDEXPREIS]]*0.85 -> 28.39406381 | H81: =Tabelle1[[#This Row],[INDEXPREIS]] -> 33.40478095 | I81: =Tabelle1[[#This Row],[EP]]*1.2 -> 33.96 | J81: =IF(Tabelle1[[#This Row],[EP]]>0,1,0) -> 1
B82: 46 | C82: Wandfugen in erdberührten Aussenwänden mit elastischer Dichtungsmasse abdichten | D82: m | E82: 11.8 | F82: =Tabelle1[[#This Row],[EP]]*MAIN!$H$10 -> 13.92849524 | G82: =Tabelle1[[#This Row],[INDEXPREIS]]*0.85 -> 11.83922095 | H82: =Tabelle1[[#This Row],[INDEXPREIS]] -> 13.92849524 | I82: =Tabelle1[[#This Row],[EP]]*1.2 -> 14.16 | J82: =IF(Tabelle1[[#This Row],[EP]]>0,1,0) -> 1
B83: 47 | C83: Wandfugen in erdberührten Aussenwänden mit Streifen aus Kunststoffdichtungsbahn mit Gewebevlieskaschierung abdich-ten | D83: m | E83: 21.6 | F83: =Tabelle1[[#This Row],[EP]]*MAIN!$H$10 -> 25.49622857 | G83: =Tabelle1[[#This Row],[INDEXPREIS]]*0.85 -> 21.67179429 | H83: =Tabelle1[[#This Row],[INDEXPREIS]] -> 25.49622857 | I83: =Tabelle1[[#This Row],[EP]]*1.2 -> 25.92 | J83: =IF(Tabelle1[[#This Row],[EP]]>0,1,0) -> 1
B84: 48 | C84: Wandfugen in erdberührten Aussenwänden mit elastischem Fugenband abdichten | D84: m | E84: 24.6 | F84: =Tabelle1[[#This Row],[EP]]*MAIN!$H$10 -> 29.03737143 | G84: =Tabelle1[[#This Row],[INDEXPREIS]]*0.85 -> 24.68176571 | H84: =Tabelle1[[#This Row],[INDEXPREIS]] -> 29.03737143 | I84: =Tabelle1[[#This Row],[EP]]*1.2 -> 29.52 | J84: =IF(Tabelle1[[#This Row],[EP]]>0,1,0) -> 1
B85: 49 | C85: Wandfugen schliessen bei Bauteilen mit chemischer Belastung mit Polyurethan-Dichtungsmasse | D85: m | E85: 6.8 | F85: =Tabelle1[[#This Row],[EP]]*MAIN!$H$10 -> 8.026590476 | G85: =Tabelle1[[#This Row],[INDEXPREIS]]*0.85 -> 6.822601905 | H85: =Tabelle1[[#This Row],[INDEXPREIS]] -> 8.026590476 | I85: =Tabelle1[[#This Row],[EP]]*1.2 -> 8.16 | J85: =IF(Tabelle1[[#This Row],[EP]]>0,1,0) -> 1
J86: =IF(Tabelle1[[#This Row],[EP]]>0,1,0) -> 0
C87: Abdichtungsanschlüsse | J87: =IF(Tabelle1[[#This Row],[EP]]>0,1,0) -> 0
B88: =B85+1 -> 50 | C88: Abdichtungsanschluss an Durchdringungen in Bodenplatten mit Anschweissflansch und Dichtungsbeilage | D88: St | E88: 13.4 | F88: =Tabelle1[[#This Row],[EP]]*MAIN!$H$10 -> 15.81710476 | G88: =Tabelle1[[#This Row],[INDEXPREIS]]*0.85 -> 13.44453905 | H88: =Tabelle1[[#This Row],[INDEXPREIS]] -> 15.81710476 | I88: =Tabelle1[[#This Row],[EP]]*1.2 -> 16.08 | J88: =IF(Tabelle1[[#This Row],[EP]]>0,1,0) -> 1
B89: =B88+1 -> 51 | C89: Abdichtungsanschluss an Durchdringungen in Bodenplatten mit Klemmflansch | D89: St | E89: 29.6 | F89: =Tabelle1[[#This Row],[EP]]*MAIN!$H$10 -> 34.93927619 | G89: =Tabelle1[[#This Row],[INDEXPREIS]]*0.85 -> 29.69838476 | H89: =Tabelle1[[#This Row],[INDEXPREIS]] -> 34.93927619 | I89: =Tabelle1[[#This Row],[EP]]*1.2 -> 35.52 | J89: =IF(Tabelle1[[#This Row],[EP]]>0,1,0) -> 1
B90: =B89+1 -> 52 | C90: Abdichtungsanschluss gegen drückendes Wasser für Rohrdurchführungen bis 150 mm mit Curaflex Dich-tungseinsatz | D90: St | E90: 195 | F90: =Tabelle1[[#This Row],[EP]]*MAIN!$H$10 -> 230.1742857 | G90: =Tabelle1[[#This Row],[INDEXPREIS]]*0.85 -> 195.6481429 | H90: =Tabelle1[[#This Row],[INDEXPREIS]] -> 230.1742857 | I90: =Tabelle1[[#This Row],[EP]]*1.2 -> 234 | J90: =IF(Tabelle1[[#This Row],[EP]]>0,1,0) -> 1
B91: 53 | C91: Abschluss Bitumenbahnabdichtung mit Klebeflansch und Kappstreifen herstellen einschl. Abdichtung der Oberkante | D91: m | E91: 13.4 | F91: =Tabelle1[[#This Row],[EP]]*MAIN!$H$10 -> 15.81710476 | G91: =Tabelle1[[#This Row],[INDEXPREIS]]*0.85 -> 13.44453905 | H91: =Tabelle1[[#This Row],[INDEXPREIS]] -> 15.81710476 | I91: =Tabelle1[[#This Row],[EP]]*1.2 -> 16.08 | J91: =IF(Tabelle1[[#This Row],[EP]]>0,1,0) -> 1
B92: 54 | C92: Abschluss Bitumenbahnabdichtung mit Klemmpofil herstellen und Abdichtung der Oberkante | D92: m | E92: 17.7 | F92: =Tabelle1[[#This Row],[EP]]*MAIN!$H$10 -> 20.89274286 | G92: =Tabelle1[[#This Row],[INDEXPREIS]]*0.85 -> 17.75883143 | H92: =Tabelle1[[#This Row],[INDEXPREIS]] -> 20.89274286 | I92: =Tabelle1[[#This Row],[EP]]*1.2 -> 21.24 | J92: =IF(Tabelle1[[#This Row],[EP]]>0,1,0) -> 1
B93: 55 | C93: Spritzbewurf volldeckend auf Wandflächen als Haftvermittler für Sperrputz aufbringen | D93: m² | E93: 13.2 | F93: =Tabelle1[[#This Row],[EP]]*MAIN!$H$10 -> 15.58102857 | G93: =Tabelle1[[#This Row],[INDEXPREIS]]*0.85 -> 13.24387429 | H93: =Tabelle1[[#This Row],[INDEXPREIS]] -> 15.58102857 | I93: =Tabelle1[[#This Row],[EP]]*1.2 -> 15.84 | J93: =IF(Tabelle1[[#This Row],[EP]]>0,1,0) -> 1
B94: 56 | C94: Perimeterdämmung aus extrudierten Polystyrolplatten XPS d=120mm unterhalb von Bodenplatten verlegen | D94: m² | E94: 29.6 | F94: =Tabelle1[[#This Row],[EP]]*MAIN!$H$10 -> 34.93927619 | G94: =Tabelle1[[#This Row],[INDEXPREIS]]*0.85 -> 29.69838476 | H94: =Tabelle1[[#This Row],[INDEXPREIS]] -> 34.93927619 | I94: =Tabelle1[[#This Row],[EP]]*1.2 -> 35.52 | J94: =IF(Tabelle1[[#This Row],[EP]]>0,1,0) -> 1
B95: 57 | C95: Perimeterdämmung CG aus Schaumglas d=120mm vor erdberührten Wandbauteilen mit drückendem Wasser | D95: m² | E95: 67.5 | F95: =Tabelle1[[#This Row],[EP]]*MAIN!$H$10 -> 79.67571429 | G95: =Tabelle1[[#This Row],[INDEXPREIS]]*0.85 -> 67.72435714 | H95: =Tabelle1[[#This Row],[INDEXPREIS]] -> 79.67571429 | I95: =Tabelle1[[#This Row],[EP]]*1.2 -> 81 | J95: =IF(Tabelle1[[#This Row],[EP]]>0,1,0) -> 1
B96: 58 | C96: Kunststoffnoppenbahn als Sickerschicht auf Keller-aussenmauerwerk einschl. Eckausbildung u.Randabschlüsse | D96: m² | E96: 14.6 | F96: =Tabelle1[[#This Row],[EP]]*MAIN!$H$10 -> 17.2335619 | G96: =Tabelle1[[#This Row],[INDEXPREIS]]*0.85 -> 14.64852762 | H96: =Tabelle1[[#This Row],[INDEXPREIS]] -> 17.2335619 | I96: =Tabelle1[[#This Row],[EP]]*1.2 -> 17.52 | J96: =IF(Tabelle1[[#This Row],[EP]]>0,1,0) -> 1
B97: 59 | C97: Sickerplatten, bitumengebunden, auf Kelleraussen-mauerwerk einschl.Eckausbildung und Randabschlüsse | D97: m² | E97: 21.8 | F97: =Tabelle1[[#This Row],[EP]]*MAIN!$H$10 -> 25.73230476 | G97: =Tabelle1[[#This Row],[INDEXPREIS]]*0.85 -> 21.87245905 | H97: =Tabelle1[[#This Row],[INDEXPREIS]] -> 25.73230476 | I97: =Tabelle1[[#This Row],[EP]]*1.2 -> 26.16 | J97: =IF(Tabelle1[[#This Row],[EP]]>0,1,0) -> 1
B98: 60 | C98: Filtervliesmatten als Schutzschicht vor Sickerplatten anbringen | D98: m² | E98: 5.8 | F98: =Tabelle1[[#This Row],[EP]]*MAIN!$H$10 -> 6.846209524 | G98: =Tabelle1[[#This Row],[INDEXPREIS]]*0.85 -> 5.819278095 | H98: =Tabelle1[[#This Row],[INDEXPREIS]] -> 6.846209524 | I98: =Tabelle1[[#This Row],[EP]]*1.2 -> 6.96 | J98: =IF(Tabelle1[[#This Row],[EP]]>0,1,0) -> 1
J99: =SUM(J27:J98) -> 60

Sheet SANITÄR
C6: Suche: | I6: Treffer:
I7: =COUNTIF($C$26:$C$253,"*"&$C$7&"*") -> 212
A9: Katalog | B9: Pos. Nr. | C9: Ergebnis | D9: Einheit | E9: EP | F9: INDEXPREIS | G9: Von | H9: Mittel | I9: Bis
A10: =IF($C$7="","",IFERROR(INDEX(A:A,_xlfn.AGGREGATE(15,6,ROW(Tabelle2[Bezeichnung])/(FIND($C$7,Tabelle2[Bezeichnung],1)>0),ROW()-9),1),"")) ->  | B10: =IF($C$7="","",IFERROR(INDEX(B:B,_xlfn.AGGREGATE(15,6,ROW(Tabelle2[Bezeichnung])/(FIND($C$7,Tabelle2[Bezeichnung],1)>0),ROW()-9),1),"")) ->  | C10: =IF($C$7="","",IFERROR(INDEX(C:C,_xlfn.AGGREGATE(15,6,ROW(Tabelle2[Bezeichnung])/(FIND($C$7,Tabelle2[Bezeichnung],1)>0),ROW()-9),1),"")) ->  | D10: =IF($C$7="","",IFERROR(INDEX(D:D,_xlfn.AGGREGATE(15,6,ROW(Tabelle2[Bezeichnung])/(FIND($C$7,Tabelle2[Bezeichnung],1)>0),ROW()-9),1),"")) ->  | E10: =IF($C$7="","",IFERROR(INDEX(E:E,_xlfn.AGGREGATE(15,6,ROW(Tabelle2[Bezeichnung])/(FIND($C$7,Tabelle2[Bezeichnung],1)>0),ROW()-9),1),"")) ->  | F10: =IF($C$7="","",IFERROR(INDEX(F:F,_xlfn.AGGREGATE(15,6,ROW(Tabelle2[Bezeichnung])/(FIND($C$7,Tabelle2[Bezeichnung],1)>0),ROW()-9),1),"")) ->  | G10: =IF($C$7="","",IFERROR(INDEX(G:G,_xlfn.AGGREGATE(15,6,ROW(Tabelle2[Bezeichnung])/(FIND($C$7,Tabelle2[Bezeichnung],1)>0),ROW()-9),1),"")) ->  | H10: =IF($C$7="","",IFERROR(INDEX(H:H,_xlfn.AGGREGATE(15,6,ROW(Tabelle2[Bezeichnung])/(FIND($C$7,Tabelle2[Bezeichnung],1)>0),ROW()-9),1),"")) ->  | I10: =IF($C$7="","",IFERROR(INDEX(I:I,_xlfn.AGGREGATE(15,6,ROW(Tabelle2[Bezeichnung])/(FIND($C$7,Tabelle2[Bezeichnung],1)>0),ROW()-9),1),"")) -> 
A11: =IF($C$7="","",IFERROR(INDEX(A:A,_xlfn.AGGREGATE(15,6,ROW(Tabelle2[Bezeichnung])/(FIND($C$7,Tabelle2[Bezeichnung],1)>0),ROW()-9),1),"")) ->  | B11: =IF($C$7="","",IFERROR(INDEX(B:B,_xlfn.AGGREGATE(15,6,ROW(Tabelle2[Bezeichnung])/(FIND($C$7,Tabelle2[Bezeichnung],1)>0),ROW()-9),1),"")) ->  | C11: =IF($C$7="","",IFERROR(INDEX(C:C,_xlfn.AGGREGATE(15,6,ROW(Tabelle2[Bezeichnung])/(FIND($C$7,Tabelle2[Bezeichnung],1)>0),ROW()-9),1),"")) ->  | D11: =IF($C$7="","",IFERROR(INDEX(D:D,_xlfn.AGGREGATE(15,6,ROW(Tabelle2[Bezeichnung])/(FIND($C$7,Tabelle2[Bezeichnung],1)>0),ROW()-9),1),"")) ->  | E11: =IF($C$7="","",IFERROR(INDEX(E:E,_xlfn.AGGREGATE(15,6,ROW(Tabelle2[Bezeichnung])/(FIND($C$7,Tabelle2[Bezeichnung],1)>0),ROW()-9),1),"")) ->  | F11: =IF($C$7="","",IFERROR(INDEX(F:F,_xlfn.AGGREGATE(15,6,ROW(Tabelle2[Bezeichnung])/(FIND($C$7,Tabelle2[Bezeichnung],1)>0),ROW()-9),1),"")) ->  | G11: =IF($C$7="","",IFERROR(INDEX(G:G,_xlfn.AGGREGATE(15,6,ROW(Tabelle2[Bezeichnung])/(FIND($C$7,Tabelle2[Bezeichnung],1)>0),ROW()-9),1),"")) ->  | H11: =IF($C$7="","",IFERROR(INDEX(H:H,_xlfn.AGGREGATE(15,6,ROW(Tabelle2[Bezeichnung])/(FIND($C$7,Tabelle2[Bezeichnung],1)>0),ROW()-9),1),"")) ->  | I11: =IF($C$7="","",IFERROR(INDEX(I:I,_xlfn.AGGREGATE(15,6,ROW(Tabelle2[Bezeichnung])/(FIND($C$7,Tabelle2[Bezeichnung],1)>0),ROW()-9),1),"")) -> 
A12: =IF($C$7="","",IFERROR(INDEX(A:A,_xlfn.AGGREGATE(15,6,ROW(Tabelle2[Bezeichnung])/(FIND($C$7,Tabelle2[Bezeichnung],1)>0),ROW()-9),1),"")) ->  | B12: =IF($C$7="","",IFERROR(INDEX(B:B,_xlfn.AGGREGATE(15,6,ROW(Tabelle2[Bezeichnung])/(FIND($C$7,Tabelle2[Bezeichnung],1)>0),ROW()-9),1),"")) ->  | C12: =IF($C$7="","",IFERROR(INDEX(C:C,_xlfn.AGGREGATE(15,6,ROW(Tabelle2[Bezeichnung])/(FIND($C$7,Tabelle2[Bezeichnung],1)>0),ROW()-9),1),"")) ->  | D12: =IF($C$7="","",IFERROR(INDEX(D:D,_xlfn.AGGREGATE(15,6,ROW(Tabelle2[Bezeichnung])/(FIND($C$7,Tabelle2[Bezeichnung],1)>0),ROW()-9),1),"")) ->  | E12: =IF($C$7="","",IFERROR(INDEX(E:E,_xlfn.AGGREGATE(15,6,ROW(Tabelle2[Bezeichnung])/(FIND($C$7,Tabelle2[Bezeichnung],1)>0),ROW()-9),1),"")) ->  | F12: =IF($C$7="","",IFERROR(INDEX(F:F,_xlfn.AGGREGATE(15,6,ROW(Tabelle2[Bezeichnung])/(FIND($C$7,Tabelle2[Bezeichnung],1)>0),ROW()-9),1),"")) ->  | G12: =IF($C$7="","",IFERROR(INDEX(G:G,_xlfn.AGGREGATE(15,6,ROW(Tabelle2[Bezeichnung])/(FIND($C$7,Tabelle2[Bezeichnung],1)>0),ROW()-9),1),"")) ->  | H12: =IF($C$7="","",IFERROR(INDEX(H:H,_xlfn.AGGREGATE(15,6,ROW(Tabelle2[Bezeichnung])/(FIND($C$7,Tabelle2[Bezeichnung],1)>0),ROW()-9),1),"")) ->  | I12: =IF($C$7="","",IFERROR(INDEX(I:I,_xlfn.AGGREGATE(15,6,ROW(Tabelle2[Bezeichnung])/(FIND($C$7,Tabelle2[Bezeichnung],1)>0),ROW()-9),1),"")) -> 
A13: =IF($C$7="","",IFERROR(INDEX(A:A,_xlfn.AGGREGATE(15,6,ROW(Tabelle2[Bezeichnung])/(FIND($C$7,Tabelle2[Bezeichnung],1)>0),ROW()-9),1),"")) ->  | B13: =IF($C$7="","",IFERROR(INDEX(B:B,_xlfn.AGGREGATE(15,6,ROW(Tabelle2[Bezeichnung])/(FIND($C$7,Tabelle2[Bezeichnung],1)>0),ROW()-9),1),"")) ->  | C13: =IF($C$7="","",IFERROR(INDEX(C:C,_xlfn.AGGREGATE(15,6,ROW(Tabelle2[Bezeichnung])/(FIND($C$7,Tabelle2[Bezeichnung],1)>0),ROW()-9),1),"")) ->  | D13: =IF($C$7="","",IFERROR(INDEX(D:D,_xlfn.AGGREGATE(15,6,ROW(Tabelle2[Bezeichnung])/(FIND($C$7,Tabelle2[Bezeichnung],1)>0),ROW()-9),1),"")) ->  | E13: =IF($C$7="","",IFERROR(INDEX(E:E,_xlfn.AGGREGATE(15,6,ROW(Tabelle2[Bezeichnung])/(FIND($C$7,Tabelle2[Bezeichnung],1)>0),ROW()-9),1),"")) ->  | F13: =IF($C$7="","",IFERROR(INDEX(F:F,_xlfn.AGGREGATE(15,6,ROW(Tabelle2[Bezeichnung])/(FIND($C$7,Tabelle2[Bezeichnung],1)>0),ROW()-9),1),"")) ->  | G13: =IF($C$7="","",IFERROR(INDEX(G:G,_xlfn.AGGREGATE(15,6,ROW(Tabelle2[Bezeichnung])/(FIND($C$7,Tabelle2[Bezeichnung],1)>0),ROW()-9),1),"")) ->  | H13: =IF($C$7="","",IFERROR(INDEX(H:H,_xlfn.AGGREGATE(15,6,ROW(Tabelle2[Bezeichnung])/(FIND($C$7,Tabelle2[Bezeichnung],1)>0),ROW()-9),1),"")) ->  | I13: =IF($C$7="","",IFERROR(INDEX(I:I,_xlfn.AGGREGATE(15,6,ROW(Tabelle2[Bezeichnung])/(FIND($C$7,Tabelle2[Bezeichnung],1)>0),ROW()-9),1),"")) -> 
A14: =IF($C$7="","",IFERROR(INDEX(A:A,_xlfn.AGGREGATE(15,6,ROW(Tabelle2[Bezeichnung])/(FIND($C$7,Tabelle2[Bezeichnung],1)>0),ROW()-9),1),"")) ->  | B14: =IF($C$7="","",IFERROR(INDEX(B:B,_xlfn.AGGREGATE(15,6,ROW(Tabelle2[Bezeichnung])/(FIND($C$7,Tabelle2[Bezeichnung],1)>0),ROW()-9),1),"")) ->  | C14: =IF($C$7="","",IFERROR(INDEX(C:C,_xlfn.AGGREGATE(15,6,ROW(Tabelle2[Bezeichnung])/(FIND($C$7,Tabelle2[Bezeichnung],1)>0),ROW()-9),1),"")) ->  | D14: =IF($C$7="","",IFERROR(INDEX(D:D,_xlfn.AGGREGATE(15,6,ROW(Tabelle2[Bezeichnung])/(FIND($C$7,Tabelle2[Bezeichnung],1)>0),ROW()-9),1),"")) ->  | E14: =IF($C$7="","",IFERROR(INDEX(E:E,_xlfn.AGGREGATE(15,6,ROW(Tabelle2[Bezeichnung])/(FIND($C$7,Tabelle2[Bezeichnung],1)>0),ROW()-9),1),"")) ->  | F14: =IF($C$7="","",IFERROR(INDEX(F:F,_xlfn.AGGREGATE(15,6,ROW(Tabelle2[Bezeichnung])/(FIND($C$7,Tabelle2[Bezeichnung],1)>0),ROW()-9),1),"")) ->  | G14: =IF($C$7="","",IFERROR(INDEX(G:G,_xlfn.AGGREGATE(15,6,ROW(Tabelle2[Bezeichnung])/(FIND($C$7,Tabelle2[Bezeichnung],1)>0),ROW()-9),1),"")) ->  | H14: =IF($C$7="","",IFERROR(INDEX(H:H,_xlfn.AGGREGATE(15,6,ROW(Tabelle2[Bezeichnung])/(FIND($C$7,Tabelle2[Bezeichnung],1)>0),ROW()-9),1),"")) ->  | I14: =IF($C$7="","",IFERROR(INDEX(I:I,_xlfn.AGGREGATE(15,6,ROW(Tabelle2[Bezeichnung])/(FIND($C$7,Tabelle2[Bezeichnung],1)>0),ROW()-9),1),"")) -> 
A15: =IF($C$7="","",IFERROR(INDEX(A:A,_xlfn.AGGREGATE(15,6,ROW(Tabelle2[Bezeichnung])/(FIND($C$7,Tabelle2[Bezeichnung],1)>0),ROW()-9),1),"")) ->  | B15: =IF($C$7="","",IFERROR(INDEX(B:B,_xlfn.AGGREGATE(15,6,ROW(Tabelle2[Bezeichnung])/(FIND($C$7,Tabelle2[Bezeichnung],1)>0),ROW()-9),1),"")) ->  | C15: =IF($C$7="","",IFERROR(INDEX(C:C,_xlfn.AGGREGATE(15,6,ROW(Tabelle2[Bezeichnung])/(FIND($C$7,Tabelle2[Bezeichnung],1)>0),ROW()-9),1),"")) ->  | D15: =IF($C$7="","",IFERROR(INDEX(D:D,_xlfn.AGGREGATE(15,6,ROW(Tabelle2[Bezeichnung])/(FIND($C$7,Tabelle2[Bezeichnung],1)>0),ROW()-9),1),"")) ->  | E15: =IF($C$7="","",IFERROR(INDEX(E:E,_xlfn.AGGREGATE(15,6,ROW(Tabelle2[Bezeichnung])/(FIND($C$7,Tabelle2[Bezeichnung],1)>0),ROW()-9),1),"")) ->  | F15: =IF($C$7="","",IFERROR(INDEX(F:F,_xlfn.AGGREGATE(15,6,ROW(Tabelle2[Bezeichnung])/(FIND($C$7,Tabelle2[Bezeichnung],1)>0),ROW()-9),1),"")) ->  | G15: =IF($C$7="","",IFERROR(INDEX(G:G,_xlfn.AGGREGATE(15,6,ROW(Tabelle2[Bezeichnung])/(FIND($C$7,Tabelle2[Bezeichnung],1)>0),ROW()-9),1),"")) ->  | H15: =IF($C$7="","",IFERROR(INDEX(H:H,_xlfn.AGGREGATE(15,6,ROW(Tabelle2[Bezeichnung])/(FIND($C$7,Tabelle2[Bezeichnung],1)>0),ROW()-9),1),"")) ->  | I15: =IF($C$7="","",IFERROR(INDEX(I:I,_xlfn.AGGREGATE(15,6,ROW(Tabelle2[Bezeichnung])/(FIND($C$7,Tabelle2[Bezeichnung],1)>0),ROW()-9),1),"")) -> 
A16: =IF($C$7="","",IFERROR(INDEX(A:A,_xlfn.AGGREGATE(15,6,ROW(Tabelle2[Bezeichnung])/(FIND($C$7,Tabelle2[Bezeichnung],1)>0),ROW()-9),1),"")) ->  | B16: =IF($C$7="","",IFERROR(INDEX(B:B,_xlfn.AGGREGATE(15,6,ROW(Tabelle2[Bezeichnung])/(FIND($C$7,Tabelle2[Bezeichnung],1)>0),ROW()-9),1),"")) ->  | C16: =IF($C$7="","",IFERROR(INDEX(C:C,_xlfn.AGGREGATE(15,6,ROW(Tabelle2[Bezeichnung])/(FIND($C$7,Tabelle2[Bezeichnung],1)>0),ROW()-9),1),"")) ->  | D16: =IF($C$7="","",IFERROR(INDEX(D:D,_xlfn.AGGREGATE(15,6,ROW(Tabelle2[Bezeichnung])/(FIND($C$7,Tabelle2[Bezeichnung],1)>0),ROW()-9),1),"")) ->  | E16: =IF($C$7="","",IFERROR(INDEX(E:E,_xlfn.AGGREGATE(15,6,ROW(Tabelle2[Bezeichnung])/(FIND($C$7,Tabelle2[Bezeichnung],1)>0),ROW()-9),1),"")) ->  | F16: =IF($C$7="","",IFERROR(INDEX(F:F,_xlfn.AGGREGATE(15,6,ROW(Tabelle2[Bezeichnung])/(FIND($C$7,Tabelle2[Bezeichnung],1)>0),ROW()-9),1),"")) ->  | G16: =IF($C$7="","",IFERROR(INDEX(G:G,_xlfn.AGGREGATE(15,6,ROW(Tabelle2[Bezeichnung])/(FIND($C$7,Tabelle2[Bezeichnung],1)>0),ROW()-9),1),"")) ->  | H16: =IF($C$7="","",IFERROR(INDEX(H:H,_xlfn.AGGREGATE(15,6,ROW(Tabelle2[Bezeichnung])/(FIND($C$7,Tabelle2[Bezeichnung],1)>0),ROW()-9),1),"")) ->  | I16: =IF($C$7="","",IFERROR(INDEX(I:I,_xlfn.AGGREGATE(15,6,ROW(Tabelle2[Bezeichnung])/(FIND($C$7,Tabelle2[Bezeichnung],1)>0),ROW()-9),1),"")) -> 
A17: =IF($C$7="","",IFERROR(INDEX(A:A,_xlfn.AGGREGATE(15,6,ROW(Tabelle2[Bezeichnung])/(FIND($C$7,Tabelle2[Bezeichnung],1)>0),ROW()-9),1),"")) ->  | B17: =IF($C$7="","",IFERROR(INDEX(B:B,_xlfn.AGGREGATE(15,6,ROW(Tabelle2[Bezeichnung])/(FIND($C$7,Tabelle2[Bezeichnung],1)>0),ROW()-9),1),"")) ->  | C17: =IF($C$7="","",IFERROR(INDEX(C:C,_xlfn.AGGREGATE(15,6,ROW(Tabelle2[Bezeichnung])/(FIND($C$7,Tabelle2[Bezeichnung],1)>0),ROW()-9),1),"")) ->  | D17: =IF($C$7="","",IFERROR(INDEX(D:D,_xlfn.AGGREGATE(15,6,ROW(Tabelle2[Bezeichnung])/(FIND($C$7,Tabelle2[Bezeichnung],1)>0),ROW()-9),1),"")) ->  | E17: =IF($C$7="","",IFERROR(INDEX(E:E,_xlfn.AGGREGATE(15,6,ROW(Tabelle2[Bezeichnung])/(FIND($C$7,Tabelle2[Bezeichnung],1)>0),ROW()-9),1),"")) ->  | F17: =IF($C$7="","",IFERROR(INDEX(F:F,_xlfn.AGGREGATE(15,6,ROW(Tabelle2[Bezeichnung])/(FIND($C$7,Tabelle2[Bezeichnung],1)>0),ROW()-9),1),"")) ->  | G17: =IF($C$7="","",IFERROR(INDEX(G:G,_xlfn.AGGREGATE(15,6,ROW(Tabelle2[Bezeichnung])/(FIND($C$7,Tabelle2[Bezeichnung],1)>0),ROW()-9),1),"")) ->  | H17: =IF($C$7="","",IFERROR(INDEX(H:H,_xlfn.AGGREGATE(15,6,ROW(Tabelle2[Bezeichnung])/(FIND($C$7,Tabelle2[Bezeichnung],1)>0),ROW()-9),1),"")) ->  | I17: =IF($C$7="","",IFERROR(INDEX(I:I,_xlfn.AGGREGATE(15,6,ROW(Tabelle2[Bezeichnung])/(FIND($C$7,Tabelle2[Bezeichnung],1)>0),ROW()-9),1),"")) -> 
A18: =IF($C$7="","",IFERROR(INDEX(A:A,_xlfn.AGGREGATE(15,6,ROW(Tabelle2[Bezeichnung])/(FIND($C$7,Tabelle2[Bezeichnung],1)>0),ROW()-9),1),"")) ->  | B18: =IF($C$7="","",IFERROR(INDEX(B:B,_xlfn.AGGREGATE(15,6,ROW(Tabelle2[Bezeichnung])/(FIND($C$7,Tabelle2[Bezeichnung],1)>0),ROW()-9),1),"")) ->  | C18: =IF($C$7="","",IFERROR(INDEX(C:C,_xlfn.AGGREGATE(15,6,ROW(Tabelle2[Bezeichnung])/(FIND($C$7,Tabelle2[Bezeichnung],1)>0),ROW()-9),1),"")) ->  | D18: =IF($C$7="","",IFERROR(INDEX(D:D,_xlfn.AGGREGATE(15,6,ROW(Tabelle2[Bezeichnung])/(FIND($C$7,Tabelle2[Bezeichnung],1)>0),ROW()-9),1),"")) ->  | E18: =IF($C$7="","",IFERROR(INDEX(E:E,_xlfn.AGGREGATE(15,6,ROW(Tabelle2[Bezeichnung])/(FIND($C$7,Tabelle2[Bezeichnung],1)>0),ROW()-9),1),"")) ->  | F18: =IF($C$7="","",IFERROR(INDEX(F:F,_xlfn.AGGREGATE(15,6,ROW(Tabelle2[Bezeichnung])/(FIND($C$7,Tabelle2[Bezeichnung],1)>0),ROW()-9),1),"")) ->  | G18: =IF($C$7="","",IFERROR(INDEX(G:G,_xlfn.AGGREGATE(15,6,ROW(Tabelle2[Bezeichnung])/(FIND($C$7,Tabelle2[Bezeichnung],1)>0),ROW()-9),1),"")) ->  | H18: =IF($C$7="","",IFERROR(INDEX(H:H,_xlfn.AGGREGATE(15,6,ROW(Tabelle2[Bezeichnung])/(FIND($C$7,Tabelle2[Bezeichnung],1)>0),ROW()-9),1),"")) ->  | I18: =IF($C$7="","",IFERROR(INDEX(I:I,_xlfn.AGGREGATE(15,6,ROW(Tabelle2[Bezeichnung])/(FIND($C$7,Tabelle2[Bezeichnung],1)>0),ROW()-9),1),"")) -> 
A19: =IF($C$7="","",IFERROR(INDEX(A:A,_xlfn.AGGREGATE(15,6,ROW(Tabelle2[Bezeichnung])/(FIND($C$7,Tabelle2[Bezeichnung],1)>0),ROW()-9),1),"")) ->  | B19: =IF($C$7="","",IFERROR(INDEX(B:B,_xlfn.AGGREGATE(15,6,ROW(Tabelle2[Bezeichnung])/(FIND($C$7,Tabelle2[Bezeichnung],1)>0),ROW()-9),1),"")) ->  | C19: =IF($C$7="","",IFERROR(INDEX(C:C,_xlfn.AGGREGATE(15,6,ROW(Tabelle2[Bezeichnung])/(FIND($C$7,Tabelle2[Bezeichnung],1)>0),ROW()-9),1),"")) ->  | D19: =IF($C$7="","",IFERROR(INDEX(D:D,_xlfn.AGGREGATE(15,6,ROW(Tabelle2[Bezeichnung])/(FIND($C$7,Tabelle2[Bezeichnung],1)>0),ROW()-9),1),"")) ->  | E19: =IF($C$7="","",IFERROR(INDEX(E:E,_xlfn.AGGREGATE(15,6,ROW(Tabelle2[Bezeichnung])/(FIND($C$7,Tabelle2[Bezeichnung],1)>0),ROW()-9),1),"")) ->  | F19: =IF($C$7="","",IFERROR(INDEX(F:F,_xlfn.AGGREGATE(15,6,ROW(Tabelle2[Bezeichnung])/(FIND($C$7,Tabelle2[Bezeichnung],1)>0),ROW()-9),1),"")) ->  | G19: =IF($C$7="","",IFERROR(INDEX(G:G,_xlfn.AGGREGATE(15,6,ROW(Tabelle2[Bezeichnung])/(FIND($C$7,Tabelle2[Bezeichnung],1)>0),ROW()-9),1),"")) ->  | H19: =IF($C$7="","",IFERROR(INDEX(H:H,_xlfn.AGGREGATE(15,6,ROW(Tabelle2[Bezeichnung])/(FIND($C$7,Tabelle2[Bezeichnung],1)>0),ROW()-9),1),"")) ->  | I19: =IF($C$7="","",IFERROR(INDEX(I:I,_xlfn.AGGREGATE(15,6,ROW(Tabelle2[Bezeichnung])/(FIND($C$7,Tabelle2[Bezeichnung],1)>0),ROW()-9),1),"")) -> 
A20: =IF($C$7="","",IFERROR(INDEX(A:A,_xlfn.AGGREGATE(15,6,ROW(Tabelle2[Bezeichnung])/(FIND($C$7,Tabelle2[Bezeichnung],1)>0),ROW()-9),1),"")) ->  | B20: =IF($C$7="","",IFERROR(INDEX(B:B,_xlfn.AGGREGATE(15,6,ROW(Tabelle2[Bezeichnung])/(FIND($C$7,Tabelle2[Bezeichnung],1)>0),ROW()-9),1),"")) ->  | C20: =IF($C$7="","",IFERROR(INDEX(C:C,_xlfn.AGGREGATE(15,6,ROW(Tabelle2[Bezeichnung])/(FIND($C$7,Tabelle2[Bezeichnung],1)>0),ROW()-9),1),"")) ->  | D20: =IF($C$7="","",IFERROR(INDEX(D:D,_xlfn.AGGREGATE(15,6,ROW(Tabelle2[Bezeichnung])/(FIND($C$7,Tabelle2[Bezeichnung],1)>0),ROW()-9),1),"")) ->  | E20: =IF($C$7="","",IFERROR(INDEX(E:E,_xlfn.AGGREGATE(15,6,ROW(Tabelle2[Bezeichnung])/(FIND($C$7,Tabelle2[Bezeichnung],1)>0),ROW()-9),1),"")) ->  | F20: =IF($C$7="","",IFERROR(INDEX(F:F,_xlfn.AGGREGATE(15,6,ROW(Tabelle2[Bezeichnung])/(FIND($C$7,Tabelle2[Bezeichnung],1)>0),ROW()-9),1),"")) ->  | G20: =IF($C$7="","",IFERROR(INDEX(G:G,_xlfn.AGGREGATE(15,6,ROW(Tabelle2[Bezeichnung])/(FIND($C$7,Tabelle2[Bezeichnung],1)>0),ROW()-9),1),"")) ->  | H20: =IF($C$7="","",IFERROR(INDEX(H:H,_xlfn.AGGREGATE(15,6,ROW(Tabelle2[Bezeichnung])/(FIND($C$7,Tabelle2[Bezeichnung],1)>0),ROW()-9),1),"")) ->  | I20: =IF($C$7="","",IFERROR(INDEX(I:I,_xlfn.AGGREGATE(15,6,ROW(Tabelle2[Bezeichnung])/(FIND($C$7,Tabelle2[Bezeichnung],1)>0),ROW()-9),1),"")) -> 
A21: =IF($C$7="","",IFERROR(INDEX(A:A,_xlfn.AGGREGATE(15,6,ROW(Tabelle2[Bezeichnung])/(FIND($C$7,Tabelle2[Bezeichnung],1)>0),ROW()-9),1),"")) ->  | B21: =IF($C$7="","",IFERROR(INDEX(B:B,_xlfn.AGGREGATE(15,6,ROW(Tabelle2[Bezeichnung])/(FIND($C$7,Tabelle2[Bezeichnung],1)>0),ROW()-9),1),"")) ->  | C21: =IF($C$7="","",IFERROR(INDEX(C:C,_xlfn.AGGREGATE(15,6,ROW(Tabelle2[Bezeichnung])/(FIND($C$7,Tabelle2[Bezeichnung],1)>0),ROW()-9),1),"")) ->  | D21: =IF($C$7="","",IFERROR(INDEX(D:D,_xlfn.AGGREGATE(15,6,ROW(Tabelle2[Bezeichnung])/(FIND($C$7,Tabelle2[Bezeichnung],1)>0),ROW()-9),1),"")) ->  | E21: =IF($C$7="","",IFERROR(INDEX(E:E,_xlfn.AGGREGATE(15,6,ROW(Tabelle2[Bezeichnung])/(FIND($C$7,Tabelle2[Bezeichnung],1)>0),ROW()-9),1),"")) ->  | F21: =IF($C$7="","",IFERROR(INDEX(F:F,_xlfn.AGGREGATE(15,6,ROW(Tabelle2[Bezeichnung])/(FIND($C$7,Tabelle2[Bezeichnung],1)>0),ROW()-9),1),"")) ->  | G21: =IF($C$7="","",IFERROR(INDEX(G:G,_xlfn.AGGREGATE(15,6,ROW(Tabelle2[Bezeichnung])/(FIND($C$7,Tabelle2[Bezeichnung],1)>0),ROW()-9),1),"")) ->  | H21: =IF($C$7="","",IFERROR(INDEX(H:H,_xlfn.AGGREGATE(15,6,ROW(Tabelle2[Bezeichnung])/(FIND($C$7,Tabelle2[Bezeichnung],1)>0),ROW()-9),1),"")) ->  | I21: =IF($C$7="","",IFERROR(INDEX(I:I,_xlfn.AGGREGATE(15,6,ROW(Tabelle2[Bezeichnung])/(FIND($C$7,Tabelle2[Bezeichnung],1)>0),ROW()-9),1),"")) -> 
A22: =IF($C$7="","",IFERROR(INDEX(A:A,_xlfn.AGGREGATE(15,6,ROW(Tabelle2[Bezeichnung])/(FIND($C$7,Tabelle2[Bezeichnung],1)>0),ROW()-9),1),"")) ->  | B22: =IF($C$7="","",IFERROR(INDEX(B:B,_xlfn.AGGREGATE(15,6,ROW(Tabelle2[Bezeichnung])/(FIND($C$7,Tabelle2[Bezeichnung],1)>0),ROW()-9),1),"")) ->  | C22: =IF($C$7="","",IFERROR(INDEX(C:C,_xlfn.AGGREGATE(15,6,ROW(Tabelle2[Bezeichnung])/(FIND($C$7,Tabelle2[Bezeichnung],1)>0),ROW()-9),1),"")) ->  | D22: =IF($C$7="","",IFERROR(INDEX(D:D,_xlfn.AGGREGATE(15,6,ROW(Tabelle2[Bezeichnung])/(FIND($C$7,Tabelle2[Bezeichnung],1)>0),ROW()-9),1),"")) ->  | E22: =IF($C$7="","",IFERROR(INDEX(E:E,_xlfn.AGGREGATE(15,6,ROW(Tabelle2[Bezeichnung])/(FIND($C$7,Tabelle2[Bezeichnung],1)>0),ROW()-9),1),"")) ->  | F22: =IF($C$7="","",IFERROR(INDEX(F:F,_xlfn.AGGREGATE(15,6,ROW(Tabelle2[Bezeichnung])/(FIND($C$7,Tabelle2[Bezeichnung],1)>0),ROW()-9),1),"")) ->  | G22: =IF($C$7="","",IFERROR(INDEX(G:G,_xlfn.AGGREGATE(15,6,ROW(Tabelle2[Bezeichnung])/(FIND($C$7,Tabelle2[Bezeichnung],1)>0),ROW()-9),1),"")) ->  | H22: =IF($C$7="","",IFERROR(INDEX(H:H,_xlfn.AGGREGATE(15,6,ROW(Tabelle2[Bezeichnung])/(FIND($C$7,Tabelle2[Bezeichnung],1)>0),ROW()-9),1),"")) ->  | I22: =IF($C$7="","",IFERROR(INDEX(I:I,_xlfn.AGGREGATE(15,6,ROW(Tabelle2[Bezeichnung])/(FIND($C$7,Tabelle2[Bezeichnung],1)>0),ROW()-9),1),"")) -> 
A23: =IF($C$7="","",IFERROR(INDEX(A:A,_xlfn.AGGREGATE(15,6,ROW(Tabelle2[Bezeichnung])/(FIND($C$7,Tabelle2[Bezeichnung],1)>0),ROW()-9),1),"")) ->  | B23: =IF($C$7="","",IFERROR(INDEX(B:B,_xlfn.AGGREGATE(15,6,ROW(Tabelle2[Bezeichnung])/(FIND($C$7,Tabelle2[Bezeichnung],1)>0),ROW()-9),1),"")) ->  | C23: =IF($C$7="","",IFERROR(INDEX(C:C,_xlfn.AGGREGATE(15,6,ROW(Tabelle2[Bezeichnung])/(FIND($C$7,Tabelle2[Bezeichnung],1)>0),ROW()-9),1),"")) ->  | D23: =IF($C$7="","",IFERROR(INDEX(D:D,_xlfn.AGGREGATE(15,6,ROW(Tabelle2[Bezeichnung])/(FIND($C$7,Tabelle2[Bezeichnung],1)>0),ROW()-9),1),"")) ->  | E23: =IF($C$7="","",IFERROR(INDEX(E:E,_xlfn.AGGREGATE(15,6,ROW(Tabelle2[Bezeichnung])/(FIND($C$7,Tabelle2[Bezeichnung],1)>0),ROW()-9),1),"")) ->  | F23: =IF($C$7="","",IFERROR(INDEX(F:F,_xlfn.AGGREGATE(15,6,ROW(Tabelle2[Bezeichnung])/(FIND($C$7,Tabelle2[Bezeichnung],1)>0),ROW()-9),1),"")) ->  | G23: =IF($C$7="","",IFERROR(INDEX(G:G,_xlfn.AGGREGATE(15,6,ROW(Tabelle2[Bezeichnung])/(FIND($C$7,Tabelle2[Bezeichnung],1)>0),ROW()-9),1),"")) ->  | H23: =IF($C$7="","",IFERROR(INDEX(H:H,_xlfn.AGGREGATE(15,6,ROW(Tabelle2[Bezeichnung])/(FIND($C$7,Tabelle2[Bezeichnung],1)>0),ROW()-9),1),"")) ->  | I23: =IF($C$7="","",IFERROR(INDEX(I:I,_xlfn.AGGREGATE(15,6,ROW(Tabelle2[Bezeichnung])/(FIND($C$7,Tabelle2[Bezeichnung],1)>0),ROW()-9),1),"")) -> 
A25: Katalog | B25: Pos. Nr. | C25: Bezeichnung | D25: Einheit | E25: EP | F25: INDEXPREIS | G25: Von | H25: Mittel | I25: Bis
C26: Kupferrohre
C27: Rohrleitung aus nahtlos gezogenem Kupfer gem. DIN EN 1057 für Trinkwasser verlegen; Lötver-bind.
A28: * | B28: 1 | C28: Rohrleitung Kupfer wie vor; 15x1,0mm | D28: m | E28: 17.6 | F28: =Tabelle2[[#This Row],[EP]]*MAIN!$H$10 -> 20.77470476 | G28: =H28*0.85 -> 17.65849905 | H28: =F28 -> 20.77470476 | I28: =H28*1.2 -> 24.92964571 | J28: =IF(Tabelle2[[#This Row],[Bis]]>0,1,0) -> 1
A29: * | B29: =B28+1 -> 2 | C29: Rohrleitung Kupfer wie vor; 18x1,0mm | D29: m | E29: 17.9 | F29: =Tabelle2[[#This Row],[EP]]*MAIN!$H$10 -> 21.12881905 | G29: =H29*0.85 -> 17.95949619 | H29: 21.12881905 | I29: =H29*1.2 -> 25.35458286 | J29: =IF(Tabelle2[[#This Row],[Bis]]>0,1,0) -> 1
A30: * | B30: =B29+1 -> 3 | C30: Rohrleitung Kupfer wie vor; 22x1,0mm | D30: m | E30: 18.9 | F30: =Tabelle2[[#This Row],[EP]]*MAIN!$H$10 -> 22.3092 | G30: 18.96282 | H30: 22.3092 | I30: 26.77104 | J30: =IF(Tabelle2[[#This Row],[Bis]]>0,1,0) -> 1
A31: * | B31: 4 | C31: Rohrleitung Kupfer wie vor; 28x1,0mm | D31: m | E31: 23.2 | F31: =Tabelle2[[#This Row],[EP]]*MAIN!$H$10 -> 27.3848381 | G31: 23.27711238 | H31: 27.3848381 | I31: 32.86180571 | J31: =IF(Tabelle2[[#This Row],[Bis]]>0,1,0) -> 1
A32: * | B32: 5 | C32: Rohrleitung Kupfer wie vor; 35x1,2mm | D32: m | E32: 25.97 | F32: =Tabelle2[[#This Row],[EP]]*MAIN!$H$10 -> 30.65449333 | G32: 26.05631933 | H32: 30.65449333 | I32: 36.785392 | J32: =IF(Tabelle2[[#This Row],[Bis]]>0,1,0) -> 1
B33: 6 | C33: Rohrleitung Kupfer wie vor; 42x1,5mm | D33: m | E33: 33.6 | F33: =Tabelle2[[#This Row],[EP]]*MAIN!$H$10 -> 39.6608 | G33: 33.71168 | H33: 39.6608 | I33: 47.59296 | J33: =IF(Tabelle2[[#This Row],[Bis]]>0,1,0) -> 1
B34: 7 | C34: Rohrleitung Kupfer wie vor; 54x2,0mm | D34: m | E34: 46.8 | F34: =Tabelle2[[#This Row],[EP]]*MAIN!$H$10 -> 55.24182857 | G34: 46.95555429 | H34: 55.24182857 | I34: 66.29019429 | J34: =IF(Tabelle2[[#This Row],[Bis]]>0,1,0) -> 1
A35: * | B35: 8 | C35: Rohrleitung Kupfer mit Kunststoffummantelung, Abm. 15x1,0mm | D35: m | E35: 17.6 | F35: =Tabelle2[[#This Row],[EP]]*MAIN!$H$10 -> 20.77470476 | G35: 17.65849905 | H35: 20.77470476 | I35: 24.92964571 | J35: =IF(Tabelle2[[#This Row],[Bis]]>0,1,0) -> 1
A36: * | B36: 9 | C36: Rohrleitung Kupfer mit Kunststoffummantelung, 18x1,0mm | D36: m | E36: 18.7 | F36: =Tabelle2[[#This Row],[EP]]*MAIN!$H$10 -> 22.07312381 | G36: 18.76215524 | H36: 22.07312381 | I36: 26.48774857 | J36: =IF(Tabelle2[[#This Row],[Bis]]>0,1,0) -> 1
A37: * | B37: 10 | C37: Rohrleitung Kupfer mit Kunststoffummantelung, 22x1,0mm | D37: m | E37: 19.8 | F37: =Tabelle2[[#This Row],[EP]]*MAIN!$H$10 -> 23.37154286 | G37: 19.86581143 | H37: 23.37154286 | I37: 28.04585143 | J37: =IF(Tabelle2[[#This Row],[Bis]]>0,1,0) -> 1
J38: =IF(Tabelle2[[#This Row],[Bis]]>0,1,0) -> 0
C39: Bogen 90° Lötanschluss | J39: =IF(Tabelle2[[#This Row],[Bis]]>0,1,0) -> 0
C40: Bogen 90° mit beidseitigem Lötanschluss für Kupferrohre für Rohrleitung liefern und einbauen | J40: =IF(Tabelle2[[#This Row],[Bis]]>0,1,0) -> 0
A41: * | B41: 11 | C41: Bogen 90° wie vor, Abm. 15x1,0mm Löt | D41: St | E41: 5.36 | F41: =Tabelle2[[#This Row],[EP]]*MAIN!$H$10 -> 6.326841905 | G41: =H41*0.85 -> 5.377815619 | H41: =F41 -> 6.326841905 | I41: =H41*1.2 -> 7.592210286 | J41: =IF(Tabelle2[[#This Row],[Bis]]>0,1,0) -> 1
A42: * | B42: =B41+1 -> 12 | C42: Bogen 90° wie vor, Abm. 18x1,0mm Löt | D42: St | E42: 6.5 | F42: =Tabelle2[[#This Row],[EP]]*MAIN!$H$10 -> 7.67247619 | G42: =H42*0.85 -> 6.521604762 | H42: 7.67247619 | I42: =H42*1.2 -> 9.206971429 | J42: =IF(Tabelle2[[#This Row],[Bis]]>0,1,0) -> 1
A43: * | B43: =B42+1 -> 13 | C43: Bogen 90° wie vor, Abm. 22x1,0mm Löt | D43: St | E43: 7.8 | F43: =Tabelle2[[#This Row],[EP]]*MAIN!$H$10 -> 9.206971429 | G43: 7.825925714 | H43: 9.206971429 | I43: 11.04836571 | J43: =IF(Tabelle2[[#This Row],[Bis]]>0,1,0) -> 1
A44: * | B44: 14 | C44: Bogen 90° wie vor, Abm. 28x1,5mm Löt | D44: St | E44: 11.2 | F44: =Tabelle2[[#This Row],[EP]]*MAIN!$H$10 -> 13.22026667 | G44: 11.23722667 | H44: 13.22026667 | I44: 15.86432 | J44: =IF(Tabelle2[[#This Row],[Bis]]>0,1,0) -> 1
A45: * | B45: 15 | C45: Bogen 90° wie vor, Abm. 35x1,0mm Löt | D45: St | E45: 18.85 | F45: =Tabelle2[[#This Row],[EP]]*MAIN!$H$10 -> 22.25018095 | G45: =H45*0.85 -> 18.91265381 | H45: =F45 -> 22.25018095 | I45: =H45*1.2 -> 26.70021714 | J45: =IF(Tabelle2[[#This Row],[Bis]]>0,1,0) -> 1
A46: * | B46: 16 | C46: Bogen 90° wie vor, Abm. 42x1,5mm Löt | D46: St | E46: 26.5 | F46: =Tabelle2[[#This Row],[EP]]*MAIN!$H$10 -> 31.28009524 | G46: 26.58808095 | H46: 31.28009524 | I46: 37.53611429 | J46: =IF(Tabelle2[[#This Row],[Bis]]>0,1,0) -> 1
J47: =IF(Tabelle2[[#This Row],[Bis]]>0,1,0) -> 0
C48: Bogen 45° Lötanschluss | J48: =IF(Tabelle2[[#This Row],[Bis]]>0,1,0) -> 0
C49: Bogen 45° mit beidseitigem Lötanschluss für Kupferrohre für Rohrleitung liefern und einbauen | J49: =IF(Tabelle2[[#This Row],[Bis]]>0,1,0) -> 0
A50: * | B50: =B46+1 -> 17 | C50: Bogen 45° wie vor, Abm. 15x1,0mm Löt | D50: St | E50: 5.36 | F50: =Tabelle2[[#This Row],[EP]]*MAIN!$H$10 -> 6.326841905 | G50: =H50*0.85 -> 5.377815619 | H50: =F50 -> 6.326841905 | I50: =H50*1.2 -> 7.592210286 | J50: =IF(Tabelle2[[#This Row],[Bis]]>0,1,0) -> 1
A51: * | B51: =B50+1 -> 18 | C51: Bogen 45° wie vor, Abm. 18x1,0mm Löt | D51: St | E51: 6.5 | F51: =Tabelle2[[#This Row],[EP]]*MAIN!$H$10 -> 7.67247619 | G51: =H51*0.85 -> 6.521604762 | H51: 7.67247619 | I51: =H51*1.2 -> 9.206971429 | J51: =IF(Tabelle2[[#This Row],[Bis]]>0,1,0) -> 1
A52: * | B52: =B51+1 -> 19 | C52: Bogen 45° wie vor, Abm. 22x1,0mm Löt | D52: St | E52: 7.8 | F52: =Tabelle2[[#This Row],[EP]]*MAIN!$H$10 -> 9.206971429 | G52: 7.825925714 | H52: 9.206971429 | I52: 11.04836571 | J52: =IF(Tabelle2[[#This Row],[Bis]]>0,1,0) -> 1
A53: * | B53: 20 | C53: Bogen 45° wie vor, Abm. 28x1,5mm Löt | D53: St | E53: 11.2 | F53: =Tabelle2[[#This Row],[EP]]*MAIN!$H$10 -> 13.22026667 | G53: 11.23722667 | H53: 13.22026667 | I53: 15.86432 | J53: =IF(Tabelle2[[#This Row],[Bis]]>0,1,0) -> 1
A54: * | B54: 21 | C54: Bogen 45° wie vor, Abm. 35x1,0mm Löt | D54: St | E54: 18.85 | F54: =Tabelle2[[#This Row],[EP]]*MAIN!$H$10 -> 22.25018095 | G54: =H54*0.85 -> 18.91265381 | H54: =F54 -> 22.25018095 | I54: =H54*1.2 -> 26.70021714 | J54: =IF(Tabelle2[[#This Row],[Bis]]>0,1,0) -> 1
A55: * | B55: 22 | C55: Bogen 45° wie vor, Abm. 42x1,5mm Löt | D55: St | E55: 26.5 | F55: =Tabelle2[[#This Row],[EP]]*MAIN!$H$10 -> 31.28009524 | G55: =H55*0.85 -> 26.58808095 | H55: 31.28009524 | I55: =H55*1.2 -> 37.53611429 | J55: =IF(Tabelle2[[#This Row],[Bis]]>0,1,0) -> 1
J56: =IF(Tabelle2[[#This Row],[Bis]]>0,1,0) -> 0
C57: Bogen 90° Pressanschluss VC Viega | J57: =IF(Tabelle2[[#This Row],[Bis]]>0,1,0) -> 0
C58: Bogen 90° mit beidseitigem Pressanschluss VC für Kupferrohre für Rohrleitung liefern und einbauen | J58: =IF(Tabelle2[[#This Row],[Bis]]>0,1,0) -> 0
A59: * | B59: =B55+1 -> 23 | C59: Bogen 90° wie vor, Abm. 15x1,0mm Press | D59: St | E59: =6.3 -> 6.3 | F59: =Tabelle2[[#This Row],[EP]]*MAIN!$H$10 -> 7.4364 | G59: =H59*0.85 -> 6.32094 | H59: =F59 -> 7.4364 | I59: =H59*1.2 -> 8.92368 | J59: =IF(Tabelle2[[#This Row],[Bis]]>0,1,0) -> 1
A60: * | B60: =B59+1 -> 24 | C60: Bogen 90° wie vor, Abm. 18x1,0mm Press | D60: St | E60: =6.5 -> 6.5 | F60: =Tabelle2[[#This Row],[EP]]*MAIN!$H$10 -> 7.67247619 | G60: =H60*0.85 -> 6.521604762 | H60: 7.67247619 | I60: =H60*1.2 -> 9.206971429 | J60: =IF(Tabelle2[[#This Row],[Bis]]>0,1,0) -> 1
A61: * | B61: =B60+1 -> 25 | C61: Bogen 90° wie vor, Abm. 22x1,0mm Press | D61: St | E61: =7.8 -> 7.8 | F61: =Tabelle2[[#This Row],[EP]]*MAIN!$H$10 -> 9.206971429 | G61: 7.825925714 | H61: 9.206971429 | I61: 11.04836571 | J61: =IF(Tabelle2[[#This Row],[Bis]]>0,1,0) -> 1
A62: * | B62: 26 | C62: Bogen 90° wie vor, Abm. 28x1,5mm Press | D62: St | E62: =11.2 -> 11.2 | F62: =Tabelle2[[#This Row],[EP]]*MAIN!$H$10 -> 13.22026667 | G62: 11.23722667 | H62: 13.22026667 | I62: 15.86432 | J62: =IF(Tabelle2[[#This Row],[Bis]]>0,1,0) -> 1
A63: * | B63: 27 | C63: Bogen 90° wie vor, Abm. 35x1,5mm Press | D63: St | E63: =14.9 -> 14.9 | F63: =Tabelle2[[#This Row],[EP]]*MAIN!$H$10 -> 17.58767619 | G63: 14.94952476 | H63: 17.58767619 | I63: 21.10521143 | J63: =IF(Tabelle2[[#This Row],[Bis]]>0,1,0) -> 1
A64: * | B64: 28 | C64: Bogen 90° wie vor, Abm. 42x1,5mm Press | D64: St | E64: =29.9 -> 29.9 | F64: =Tabelle2[[#This Row],[EP]]*MAIN!$H$10 -> 35.29339048 | G64: =H64*0.85 -> 29.9993819 | H64: 35.29339048 | I64: =H64*1.2 -> 42.35206857 | J64: =IF(Tabelle2[[#This Row],[Bis]]>0,1,0) -> 1
A65: * | B65: 29 | C65: Bogen 90° wie vor, Abm. 54x1,5mm Press | D65: St | E65: =55.9 -> 55.9 | F65: =Tabelle2[[#This Row],[EP]]*MAIN!$H$10 -> 65.98329524 | G65: =H65*0.85 -> 56.08580095 | H65: 65.98329524 | I65: =H65*1.2 -> 79.17995429 | J65: =IF(Tabelle2[[#This Row],[Bis]]>0,1,0) -> 1
J66: =IF(Tabelle2[[#This Row],[Bis]]>0,1,0) -> 0
C67: Bogen 45° Pressanschluss VC Viega | J67: =IF(Tabelle2[[#This Row],[Bis]]>0,1,0) -> 0
C68: Bogen 45° mit beidseitigem Pressanschluss VC für Kupferrohre für Rohrleitung liefern und einbauen | J68: =IF(Tabelle2[[#This Row],[Bis]]>0,1,0) -> 0
A69: * | B69: =B65+1 -> 30 | C69: Bogen 45° wie vor, Abm. 15x1,0mm Press | D69: St | E69: =6.3 -> 6.3 | F69: =Tabelle2[[#This Row],[EP]]*MAIN!$H$10 -> 7.4364 | G69: =H69*0.85 -> 6.32094 | H69: =F69 -> 7.4364 | I69: =H69*1.2 -> 8.92368 | J69: =IF(Tabelle2[[#This Row],[Bis]]>0,1,0) -> 1
A70: * | B70: =B69+1 -> 31 | C70: Bogen 45° wie vor, Abm. 18x1,0mm Press | D70: St | E70: =6.5 -> 6.5 | F70: =Tabelle2[[#This Row],[EP]]*MAIN!$H$10 -> 7.67247619 | G70: =H70*0.85 -> 6.521604762 | H70: 7.67247619 | I70: =H70*1.2 -> 9.206971429 | J70: =IF(Tabelle2[[#This Row],[Bis]]>0,1,0) -> 1
A71: * | B71: =B70+1 -> 32 | C71: Bogen 45° wie vor, Abm. 22x1,0mm Press | D71: St | E71: =7.8 -> 7.8 | F71: =Tabelle2[[#This Row],[EP]]*MAIN!$H$10 -> 9.206971429 | G71: 7.825925714 | H71: 9.206971429 | I71: 11.04836571 | J71: =IF(Tabelle2[[#This Row],[Bis]]>0,1,0) -> 1
A72: * | B72: 33 | C72: Bogen 45° wie vor, Abm. 28x1,5mm Press | D72: St | E72: =11.2 -> 11.2 | F72: =Tabelle2[[#This Row],[EP]]*MAIN!$H$10 -> 13.22026667 | G72: 11.23722667 | H72: 13.22026667 | I72: 15.86432 | J72: =IF(Tabelle2[[#This Row],[Bis]]>0,1,0) -> 1
A73: * | B73: 34 | C73: Bogen 45° wie vor, Abm. 35x1,5mm Press | D73: St | E73: =14.9 -> 14.9 | F73: =Tabelle2[[#This Row],[EP]]*MAIN!$H$10 -> 17.58767619 | G73: 14.94952476 | H73: 17.58767619 | I73: 21.10521143 | J73: =IF(Tabelle2[[#This Row],[Bis]]>0,1,0) -> 1
A74: * | B74: 35 | C74: Bogen 45° wie vor, Abm. 42x1,5mm Press | D74: St | E74: =29.9 -> 29.9 | F74: =Tabelle2[[#This Row],[EP]]*MAIN!$H$10 -> 35.29339048 | G74: 29.9993819 | H74: 35.29339048 | I74: 42.35206857 | J74: =IF(Tabelle2[[#This Row],[Bis]]>0,1,0) -> 1
A75: * | B75: 36 | C75: Bogen 45° wie vor, Abm. 54x1,5mm Press | D75: St | E75: =55.9 -> 55.9 | F75: =Tabelle2[[#This Row],[EP]]*MAIN!$H$10 -> 65.98329524 | G75: 56.08580095 | H75: 65.98329524 | I75: 79.17995429 | J75: =IF(Tabelle2[[#This Row],[Bis]]>0,1,0) -> 1
J76: =IF(Tabelle2[[#This Row],[Bis]]>0,1,0) -> 0
C77: PVC-U Rohre | J77: =IF(Tabelle2[[#This Row],[Bis]]>0,1,0) -> 0
C78: PVC-U Rohre als Druckrohr bis 20bar gem. Anforderung an Trinkwassernorm liefern und montieren; | J78: =IF(Tabelle2[[#This Row],[Bis]]>0,1,0) -> 0
B79: =B75+1 -> 37 | C79: PVC-Rohre als Druckrohr bis 16bar wie vor; 16x1,5mm | D79: m | E79: 11.8 | F79: =Tabelle2[[#This Row],[EP]]*MAIN!$H$10 -> 13.92849524 | G79: =H79*0.85 -> 11.83922095 | H79: =F79 -> 13.92849524 | I79: =H79*1.2 -> 16.71419429 | J79: =IF(Tabelle2[[#This Row],[Bis]]>0,1,0) -> 1
A80: * | B80: =B79+1 -> 38 | C80: PVC-Rohre als Druckrohr bis 16bar wie vor; 20x1,5mm | D80: m | E80: 12.2 | F80: =Tabelle2[[#This Row],[EP]]*MAIN!$H$10 -> 14.40064762 | G80: =H80*0.85 -> 12.24055048 | H80: 14.40064762 | I80: =H80*1.2 -> 17.28077714 | J80: =IF(Tabelle2[[#This Row],[Bis]]>0,1,0) -> 1
A81: * | B81: =B80+1 -> 39 | C81: PVC-Rohre als Druckrohr bis 16bar wie vor; 25x1,9mm | D81: m | E81: 12.2 | F81: =Tabelle2[[#This Row],[EP]]*MAIN!$H$10 -> 14.40064762 | G81: 12.24055048 | H81: 14.40064762 | I81: 17.28077714 | J81: =IF(Tabelle2[[#This Row],[Bis]]>0,1,0) -> 1
A82: * | B82: =B81+1 -> 40 | C82: PVC-Rohre als Druckrohr bis 16bar wie vor; 32x2,4mm | D82: m | E82: 12.5 | F82: =Tabelle2[[#This Row],[EP]]*MAIN!$H$10 -> 14.7547619 | G82: 12.54154762 | H82: 14.7547619 | I82: 17.70571429 | J82: =IF(Tabelle2[[#This Row],[Bis]]>0,1,0) -> 1
A83: * | B83: =B82+1 -> 41 | C83: PVC-Rohre als Druckrohr bis 16bar wie vor; 40x3,0mm | D83: m | E83: 14.2 | F83: =Tabelle2[[#This Row],[EP]]*MAIN!$H$10 -> 16.76140952 | G83: 14.2471981 | H83: 16.76140952 | I83: 20.11369143 | J83: =IF(Tabelle2[[#This Row],[Bis]]>0,1,0) -> 1
A84: * | B84: 42 | C84: PVC-Rohre als Druckrohr bis 16bar wie vor; 63x3,0mm | D84: m | E84: 18.2 | F84: =Tabelle2[[#This Row],[EP]]*MAIN!$H$10 -> 21.48293333 | G84: =H84*0.85 -> 18.26049333 | H84: =F84 -> 21.48293333 | I84: =H84*1.2 -> 25.77952
B85: 43 | C85: PVC-Rohrleitung einschl. Befestigung ausbauen u. entsorgen | D85: m | E85: 7 | F85: =Tabelle2[[#This Row],[EP]]*MAIN!$H$10 -> 8.262666667 | G85: 7.023266667 | H85: 8.262666667 | I85: 9.9152 | J85: =IF(Tabelle2[[#This Row],[Bis]]>0,1,0) -> 1
J86: =IF(Tabelle2[[#This Row],[Bis]]>0,1,0) -> 0
C87: PVC-U Winkel 90° | J87: =IF(Tabelle2[[#This Row],[Bis]]>0,1,0) -> 0
C88: PVC-U-Winkel 90° mit Klebemuffe liefern und einsetzen; | J88: =IF(Tabelle2[[#This Row],[Bis]]>0,1,0) -> 0
B89: =B85+1 -> 44 | C89: PVC-U-Winkel 90° d = 16 mm | D89: St | E89: 5.8 | F89: =Tabelle2[[#This Row],[EP]]*MAIN!$H$10 -> 6.846209524 | G89: =H89*0.85 -> 5.819278095 | H89: =F89 -> 6.846209524 | I89: =H89*1.2 -> 8.215451429 | J89: =IF(Tabelle2[[#This Row],[Bis]]>0,1,0) -> 1
A90: * | B90: =B89+1 -> 45 | C90: PVC-U-Winkel 90° d = 20 mm | D90: St | E90: 5.9 | F90: =Tabelle2[[#This Row],[EP]]*MAIN!$H$10 -> 6.964247619 | G90: =H90*0.85 -> 5.919610476 | H90: =F90 -> 6.964247619 | I90: =H90*1.2 -> 8.357097143 | J90: =IF(Tabelle2[[#This Row],[Bis]]>0,1,0) -> 1
A91: * | B91: =B90+1 -> 46 | C91: PVC-U-Winkel 90° d = 25 mm | D91: St | E91: 6.1 | F91: =Tabelle2[[#This Row],[EP]]*MAIN!$H$10 -> 7.20032381 | G91: 6.120275238 | H91: =F91 -> 7.20032381 | I91: 8.640388571 | J91: =IF(Tabelle2[[#This Row],[Bis]]>0,1,0) -> 1
A92: * | B92: 47 | C92: PVC-U-Winkel 90° d = 32 mm | D92: St | E92: 6.3 | F92: =Tabelle2[[#This Row],[EP]]*MAIN!$H$10 -> 7.4364 | G92: 6.32094 | H92: =F92 -> 7.4364 | I92: 8.92368 | J92: =IF(Tabelle2[[#This Row],[Bis]]>0,1,0) -> 1
A93: * | B93: 48 | C93: PVC-U-Winkel 90° d = 50 mm | D93: St | E93: 6.9 | F93: =Tabelle2[[#This Row],[EP]]*MAIN!$H$10 -> 8.144628571 | G93: =H93*0.85 -> 6.922934286 | H93: =F93 -> 8.144628571 | I93: =H93*1.2 -> 9.773554286
J94: =IF(Tabelle2[[#This Row],[Bis]]>0,1,0) -> 0
C95: PVC-U Winkel 45° | J95: =IF(Tabelle2[[#This Row],[Bis]]>0,1,0) -> 0
C96: PVC-U-Winkel 45° mit Klebemuffe liefern und einsetzen; | J96: =IF(Tabelle2[[#This Row],[Bis]]>0,1,0) -> 0
B97: =B93+1 -> 49 | C97: PVC-U-Winkel 45° d = 16 mm | D97: St | E97: 5.8 | F97: =Tabelle2[[#This Row],[EP]]*MAIN!$H$10 -> 6.846209524 | G97: =H97*0.85 -> 5.819278095 | H97: =F97 -> 6.846209524 | I97: =H97*1.2 -> 8.215451429 | J97: =IF(Tabelle2[[#This Row],[Bis]]>0,1,0) -> 1
A98: * | B98: =B97+1 -> 50 | C98: PVC-U-Winkel 45° d = 20 mm | D98: St | E98: 5.9 | F98: =Tabelle2[[#This Row],[EP]]*MAIN!$H$10 -> 6.964247619 | G98: =H98*0.85 -> 5.919610476 | H98: =F98 -> 6.964247619 | I98: =H98*1.2 -> 8.357097143 | J98: =IF(Tabelle2[[#This Row],[Bis]]>0,1,0) -> 1
A99: * | B99: =B98+1 -> 51 | C99: PVC-U-Winkel 45° d = 25 mm | D99: St | E99: 6.1 | F99: =Tabelle2[[#This Row],[EP]]*MAIN!$H$10 -> 7.20032381 | G99: 6.120275238 | H99: =F99 -> 7.20032381 | I99: 8.640388571 | J99: =IF(Tabelle2[[#This Row],[Bis]]>0,1,0) -> 1
A100: * | B100: 52 | C100: PVC-U-Winkel 45° d = 32 mm | D100: St | E100: 6.3 | F100: =Tabelle2[[#This Row],[EP]]*MAIN!$H$10 -> 7.4364 | G100: 6.32094 | H100: =F100 -> 7.4364 | I100: 8.92368 | J100: =IF(Tabelle2[[#This Row],[Bis]]>0,1,0) -> 1
J101: =IF(Tabelle2[[#This Row],[Bis]]>0,1,0) -> 0
C102: PVC-U T-Stück | J102: =IF(Tabelle2[[#This Row],[Bis]]>0,1,0) -> 0
C103: PVC-U T-Stück liegern und einsetzen; | J103: =IF(Tabelle2[[#This Row],[Bis]]>0,1,0) -> 0
B104: =B100+1 -> 53 | C104: T-Stück für PVC-Rohre 16 mm | D104: St | E104: 6.1 | F104: =Tabelle2[[#This Row],[EP]]*MAIN!$H$10 -> 7.20032381 | G104: =H104*0.85 -> 6.120275238 | H104: =F104 -> 7.20032381 | I104: =H104*1.2 -> 8.640388571 | J104: =IF(Tabelle2[[#This Row],[Bis]]>0,1,0) -> 1
A105: * | B105: =B104+1 -> 54 | C105: T-Stück für PVC-Rohre 20 mm | D105: St | E105: 6.3 | F105: =Tabelle2[[#This Row],[EP]]*MAIN!$H$10 -> 7.4364 | G105: =H105*0.85 -> 6.32094 | H105: =F105 -> 7.4364 | I105: =H105*1.2 -> 8.92368 | J105: =IF(Tabelle2[[#This Row],[Bis]]>0,1,0) -> 1
A106: * | B106: =B105+1 -> 55 | C106: T-Stück für PVC-Rohre 25 mm | D106: St | E106: 6.6 | F106: =Tabelle2[[#This Row],[EP]]*MAIN!$H$10 -> 7.790514286 | G106: =H106*0.85 -> 6.621937143 | H106: =F106 -> 7.790514286 | I106: =H106*1.2 -> 9.348617143 | J106: =IF(Tabelle2[[#This Row],[Bis]]>0,1,0) -> 1
A107: * | B107: 56 | C107: T-Stück für PVC-Rohre 32 mm | D107: St | E107: 7.6 | F107: =Tabelle2[[#This Row],[EP]]*MAIN!$H$10 -> 8.970895238 | G107: 7.625260952 | H107: =F107 -> 8.970895238 | I107: 10.76507429 | J107: =IF(Tabelle2[[#This Row],[Bis]]>0,1,0) -> 1
A108: * | B108: 57 | C108: T-Stück für PVC-Rohre 40 mm | D108: St | E108: 8.7 | F108: =Tabelle2[[#This Row],[EP]]*MAIN!$H$10 -> 10.26931429 | G108: 8.728917143 | H108: =F108 -> 10.26931429 | I108: 12.32317714 | J108: =IF(Tabelle2[[#This Row],[Bis]]>0,1,0) -> 1
J109: =IF(Tabelle2[[#This Row],[Bis]]>0,1,0) -> 0
C110: Reduzierstück für PVC-U-Rohre | J110: =IF(Tabelle2[[#This Row],[Bis]]>0,1,0) -> 0
B111: =B108+1 -> 58 | C111: Reduzierstück für PVC-U-Rohre liefern und montieren; Abm.: 20/16 mm | J111: =IF(Tabelle2[[#This Row],[Bis]]>0,1,0) -> 0
B112: =B111+1 -> 59 | C112: Reduzierstück für PVC-Rohre 20/16 mm | D112: St | E112: 6.3 | F112: =Tabelle2[[#This Row],[EP]]*MAIN!$H$10 -> 7.4364 | G112: =H112*0.85 -> 6.32094 | H112: =F112 -> 7.4364 | I112: =H112*1.2 -> 8.92368 | J112: =IF(Tabelle2[[#This Row],[Bis]]>0,1,0) -> 1
B113: =B112+1 -> 60 | C113: Reduzierstück für PVC-Rohre 25/20 mm | D113: St | E113: 8.2 | F113: =Tabelle2[[#This Row],[EP]]*MAIN!$H$10 -> 9.67912381 | G113: =H113*0.85 -> 8.227255238 | H113: =F113 -> 9.67912381 | I113: =H113*1.2 -> 11.61494857 | J113: =IF(Tabelle2[[#This Row],[Bis]]>0,1,0) -> 1
B114: 61 | C114: Reduzierstück für PVC-Rohre 32/25 mm | D114: St | E114: 8.2 | F114: =Tabelle2[[#This Row],[EP]]*MAIN!$H$10 -> 9.67912381 | G114: 8.227255238 | H114: =F114 -> 9.67912381 | I114: 11.61494857 | J114: =IF(Tabelle2[[#This Row],[Bis]]>0,1,0) -> 1
B115: 62 | C115: Reduzierstück für PVC-Rohre 40/32 mm | D115: St | E115: 8.2 | F115: =Tabelle2[[#This Row],[EP]]*MAIN!$H$10 -> 9.67912381 | G115: 8.227255238 | H115: =F115 -> 9.67912381 | I115: 11.61494857 | J115: =IF(Tabelle2[[#This Row],[Bis]]>0,1,0) -> 1
J116: =IF(Tabelle2[[#This Row],[Bis]]>0,1,0) -> 0
C117: Aluminium- Mehrschichtverbundrohre | J117: =IF(Tabelle2[[#This Row],[Bis]]>0,1,0) -> 0
C118: Metall-Verbundrohre für Trinkwasser Warm u. Kaltwasserleitung einschl. Verbindungsstücke und Rohrbefestigungen liefern und verlegen | J118: =IF(Tabelle2[[#This Row],[Bis]]>0,1,0) -> 0
A119: * | B119: =B115+1 -> 63 | C119: Metallverbundrohre wie vor DN 15 | D119: m | E119: 19.2 | F119: =Tabelle2[[#This Row],[EP]]*MAIN!$H$10 -> 22.66331429 | G119: =H119*0.85 -> 19.26381714 | H119: =F119 -> 22.66331429 | I119: =H119*1.2 -> 27.19597714 | J119: =IF(Tabelle2[[#This Row],[Bis]]>0,1,0) -> 1
A120: * | B120: =B119+1 -> 64 | C120: Metallverbundrohre wie vor DN 20 | D120: m | E120: 19.8 | F120: =Tabelle2[[#This Row],[EP]]*MAIN!$H$10 -> 23.37154286 | G120: =H120*0.85 -> 19.86581143 | H120: =F120 -> 23.37154286 | I120: =H120*1.2 -> 28.04585143 | J120: =IF(Tabelle2[[#This Row],[Bis]]>0,1,0) -> 1
A121: * | B121: =B120+1 -> 65 | C121: Metallverbundrohre wie vor DN 25 | D121: m | E121: 20.4 | F121: =Tabelle2[[#This Row],[EP]]*MAIN!$H$10 -> 24.07977143 | G121: 20.46780571 | H121: =F121 -> 24.07977143 | I121: 28.89572571 | J121: =IF(Tabelle2[[#This Row],[Bis]]>0,1,0) -> 1
A122: * | B122: 66 | C122: Metallverbundrohre wie vor DN 32 | D122: m | E122: 22.3 | F122: =Tabelle2[[#This Row],[EP]]*MAIN!$H$10 -> 26.32249524 | G122: 22.37412095 | H122: =F122 -> 26.32249524 | I122: 31.58699429 | J122: =IF(Tabelle2[[#This Row],[Bis]]>0,1,0) -> 1
B123: 67 | C123: Metallverbundrohre wie vor DN 40 | D123: m | E123: 35.4 | F123: =Tabelle2[[#This Row],[EP]]*MAIN!$H$10 -> 41.78548571 | G123: 35.51766286 | H123: =F123 -> 41.78548571 | I123: 50.14258286 | J123: =IF(Tabelle2[[#This Row],[Bis]]>0,1,0) -> 1
J124: =IF(Tabelle2[[#This Row],[Bis]]>0,1,0) -> 0
C125: Rohrleitungen aus Edelstahl | J125: =IF(Tabelle2[[#This Row],[Bis]]>0,1,0) -> 0
C126: Rohrleitungen aus Edelstahl V4A, nicht rostend, für Trinkwasserleitungen einschl. Verbindungsstücke u. Rohrbefestigung liefern u. montieren; | J126: =IF(Tabelle2[[#This Row],[Bis]]>0,1,0) -> 0
A127: * | B127: =B123+1 -> 68 | C127: Rohrleitungen aus Stahl, nicht rostend, wie vor DN 15 x 1,0 | D127: m | E127: 28.3 | F127: =Tabelle2[[#This Row],[EP]]*MAIN!$H$10 -> 33.40478095 | G127: =H127*0.85 -> 28.39406381 | H127: =F127 -> 33.40478095 | I127: =H127*1.2 -> 40.08573714 | J127: =IF(Tabelle2[[#This Row],[Bis]]>0,1,0) -> 1
A128: * | B128: =B127+1 -> 69 | C128: Rohrleitungen aus Stahl, nicht rostend, wie vor DN 18 x 1,0 | D128: m | E128: 29.5 | F128: =Tabelle2[[#This Row],[EP]]*MAIN!$H$10 -> 34.8212381 | G128: =H128*0.85 -> 29.59805238 | H128: 34.8212381 | I128: =H128*1.2 -> 41.78548571 | J128: =IF(Tabelle2[[#This Row],[Bis]]>0,1,0) -> 1
A129: * | B129: =B128+1 -> 70 | C129: Rohrleitungen aus Stahl, nicht rostend, wie vor DN 22 x 1,2 | D129: m | E129: 31.4 | F129: =Tabelle2[[#This Row],[EP]]*MAIN!$H$10 -> 37.0639619 | G129: 31.50436762 | H129: 37.0639619 | I129: 44.47675429 | J129: =IF(Tabelle2[[#This Row],[Bis]]>0,1,0) -> 1
A130: * | B130: 71 | C130: Rohrleitungen aus Stahl, nicht rostend, wie vor DN 28 x 1,2 | D130: m | E130: 33.6 | F130: =Tabelle2[[#This Row],[EP]]*MAIN!$H$10 -> 39.6608 | G130: 33.71168 | H130: 39.6608 | I130: 47.59296 | J130: =IF(Tabelle2[[#This Row],[Bis]]>0,1,0) -> 1
A131: * | B131: 72 | C131: Rohrleitungen aus Stahl, nicht rostend, wie vor DN 35 x 1,5 | D131: m | E131: 36.1 | F131: =Tabelle2[[#This Row],[EP]]*MAIN!$H$10 -> 42.61175238 | G131: 36.21998952 | H131: 42.61175238 | I131: 51.13410286 | J131: =IF(Tabelle2[[#This Row],[Bis]]>0,1,0) -> 1
B132: 73 | C132: Rohrleitungen aus Stahl, nicht rostend, wie vor DN 42,4 x 2,0 | D132: m | E132: 37.8 | F132: =Tabelle2[[#This Row],[EP]]*MAIN!$H$10 -> 44.6184 | G132: 37.92564 | H132: 44.6184 | I132: 53.54208 | J132: =IF(Tabelle2[[#This Row],[Bis]]>0,1,0) -> 1
B133: 74 | C133: Stahlrohrleitung, entleert, d=12 bis 25mm eischl. Befestigungsmittel ausbauen und entsorgen | D133: m | E133: 5.2 | F133: =Tabelle2[[#This Row],[EP]]*MAIN!$H$10 -> 6.137980952 | G133: 5.21728381 | H133: 6.137980952 | I133: 7.365577143 | J133: =IF(Tabelle2[[#This Row],[Bis]]>0,1,0) -> 1
B134: 75 | C134: Stahlrohrleit., entleert, d=32 bis 50 mm ausbauen | D134: m | E134: 7.1 | F134: =Tabelle2[[#This Row],[EP]]*MAIN!$H$10 -> 8.380704762 | G134: 7.123599048 | H134: 8.380704762 | I134: 10.05684571 | J134: =IF(Tabelle2[[#This Row],[Bis]]>0,1,0) -> 1
J135: =IF(Tabelle2[[#This Row],[Bis]]>0,1,0) -> 0
C136: PE-Xc Rohre [Polyethylenrohr mit höherer Temperatur-beständigkeit] | J136: =IF(Tabelle2[[#This Row],[Bis]]>0,1,0) -> 0
C137: Leitungsrohr aus Polyethylen, 5 Schichten Verbundrohr, temperatur u. korrosionsbest. für Trinkwasserleitung liefern u. verlegen | J137: =IF(Tabelle2[[#This Row],[Bis]]>0,1,0) -> 0
A138: * | B138: =B134+1 -> 76 | C138: Leitungsrohr aus Polyethylen, d = 16mm | D138: m | E138: 8.6 | F138: =Tabelle2[[#This Row],[EP]]*MAIN!$H$10 -> 10.15127619 | G138: =H138*0.85 -> 8.628584762 | H138: =F138 -> 10.15127619 | I138: =H138*1.2 -> 12.18153143 | J138: =IF(Tabelle2[[#This Row],[Bis]]>0,1,0) -> 1
A139: * | B139: =B138+1 -> 77 | C139: Leitungsrohr aus Polyethylen, d = 20mm | D139: m | E139: 9.2 | F139: =Tabelle2[[#This Row],[EP]]*MAIN!$H$10 -> 10.85950476 | G139: =H139*0.85 -> 9.230579048 | H139: 10.85950476 | I139: =H139*1.2 -> 13.03140571 | J139: =IF(Tabelle2[[#This Row],[Bis]]>0,1,0) -> 1
A140: * | B140: =B139+1 -> 78 | C140: Alu-Verbundrohr d=16 x 2,0mm mit 6 mm PE-Isolierung liefern u. verlegen | D140: m | E140: 9.7 | F140: =Tabelle2[[#This Row],[EP]]*MAIN!$H$10 -> 11.44969524 | G140: 9.732240952 | H140: 11.44969524 | I140: 13.73963429 | J140: =IF(Tabelle2[[#This Row],[Bis]]>0,1,0) -> 1
A141: * | B141: 79 | C141: Alu-Verbundrohr d=20 x 2,0mm mit 6 mm PE-Isolierung liefern u. verlegen | D141: m | E141: 10.6 | F141: =Tabelle2[[#This Row],[EP]]*MAIN!$H$10 -> 12.5120381 | G141: 10.63523238 | H141: 12.5120381 | I141: 15.01444571 | J141: =IF(Tabelle2[[#This Row],[Bis]]>0,1,0) -> 1
A142: * | B142: 80 | C142: Presswinkel 90° 16 x 2 mm liefern u. einbauen | D142: St | E142: 7.5 | F142: =Tabelle2[[#This Row],[EP]]*MAIN!$H$10 -> 8.852857143 | G142: 7.524928571 | H142: 8.852857143 | I142: 10.62342857 | J142: =IF(Tabelle2[[#This Row],[Bis]]>0,1,0) -> 1
A143: * | B143: 81 | C143: Presswinkel 90°, 20 x 2mm liefern u. einbauen | D143: St | E143: 8.2 | F143: =Tabelle2[[#This Row],[EP]]*MAIN!$H$10 -> 9.67912381 | G143: 8.227255238 | H143: 9.67912381 | I143: 11.61494857 | J143: =IF(Tabelle2[[#This Row],[Bis]]>0,1,0) -> 1
A144: * | B144: 82 | C144: Pressfitting T-Stück, Mittelabgang erweitert 16 bis 20mm liefern und einbauen | D144: St | E144: 9.9 | F144: =Tabelle2[[#This Row],[EP]]*MAIN!$H$10 -> 11.68577143 | G144: 9.932905714 | H144: 11.68577143 | I144: 14.02292571 | J144: =IF(Tabelle2[[#This Row],[Bis]]>0,1,0) -> 1
A145: * | B145: 83 | C145: Wandwinkel/Formstück für PE-X Rohre / Klemmverbindung mit Innengewinde d = 16 mm x 2 auf 1/2"/ Klemmverb. | D145: St | E145: 11.6 | F145: =Tabelle2[[#This Row],[EP]]*MAIN!$H$10 -> 13.69241905 | G145: 11.63855619 | H145: 13.69241905 | I145: 16.43090286 | J145: =IF(Tabelle2[[#This Row],[Bis]]>0,1,0) -> 1
B146: 84 | C146: Wandwinkel/Formstück für PE-X Rohre / Klemmverbindung mit Innengewinde d = 18 mm x 2 auf 1/2"/ Klemmverb | D146: St | E146: 11.9 | F146: =Tabelle2[[#This Row],[EP]]*MAIN!$H$10 -> 14.04653333 | G146: 11.93955333 | H146: 14.04653333 | I146: 16.85584 | J146: =IF(Tabelle2[[#This Row],[Bis]]>0,1,0) -> 1
A147: * | B147: 85 | C147: Pressfitting Kupplung/Formstück für PE-X-Rohr mit Klemmverbindung, Abm.: 16 bis 20 mm Doppel | D147: St | E147: 14.17 | F147: =Tabelle2[[#This Row],[EP]]*MAIN!$H$10 -> 16.7259981 | G147: 14.21709838 | H147: 16.7259981 | I147: 20.07119771 | J147: =IF(Tabelle2[[#This Row],[Bis]]>0,1,0) -> 1
J148: =IF(Tabelle2[[#This Row],[Bis]]>0,1,0) -> 0
C149: Sanitärobjekte u. Ausstattung | J149: =IF(Tabelle2[[#This Row],[Bis]]>0,1,0) -> 0
C150: Diese Aufstellung dient nur zur Information. Die Angebote für Objekte und Ausstattung dieser Kategorie unterliegen häufigen Marktvariationen. | J150: =IF(Tabelle2[[#This Row],[Bis]]>0,1,0) -> 0
A151: * | B151: =B147+1 -> 86 | C151: Ausgussbecken aus Stahl 50 x 33 cm, weiß emailliert, ohne Überlauf f. Wirtschaftsräume liefern und montieren | D151: St | E151: 89.4 | F151: =Tabelle2[[#This Row],[EP]]*MAIN!$H$10 -> 105.5260571 | G151: =H151*0.85 -> 89.69714857 | H151: =F151 -> 105.5260571 | I151: =H151*1.2 -> 126.6312686 | J151: =IF(Tabelle2[[#This Row],[Bis]]>0,1,0) -> 1
A152: * | B152: =B151+1 -> 87 | C152: Handwaschbecken, 450-500mm mit Überlauf, Sanitärporzellan weiß, mit verchromten Röhren-siphon 11/4" und verchromten Eckventilen liefern u. montieren | D152: St | E152: 97.1 | F152: =Tabelle2[[#This Row],[EP]]*MAIN!$H$10 -> 114.6149905 | G152: 97.4227419 | H152: 114.6149905 | I152: 137.5379886 | J152: =IF(Tabelle2[[#This Row],[Bis]]>0,1,0) -> 1
A153: * | B153: =B152+1 -> 88 | C153: Eck-Handwaschbecken b=400mm, sonst wie vor liefern und montieren | D153: St | E153: 265.58 | F153: =Tabelle2[[#This Row],[EP]]*MAIN!$H$10 -> 313.4855733 | G153: 266.4627373 | H153: 313.4855733 | I153: 376.182688 | J153: =IF(Tabelle2[[#This Row],[Bis]]>0,1,0) -> 1
A154: * | B154: 89 | C154: Waschtisch, Keramik weiss 600-650mm, sonst wie vor mit Schallschutzset liefern und montieren | D154: St | E154: 180.6 | F154: =Tabelle2[[#This Row],[EP]]*MAIN!$H$10 -> 213.1768 | G154: 181.20028 | H154: 213.1768 | I154: 255.81216 | J154: =IF(Tabelle2[[#This Row],[Bis]]>0,1,0) -> 1
A155: * | B155: 90 | C155: Waschtisch, Keramik weiss, 700mm wie vor mit Säule z.B. Ideal Standard liefern und montieren | D155: St | E155: 242 | F155: =Tabelle2[[#This Row],[EP]]*MAIN!$H$10 -> 285.6521905 | G155: 242.8043619 | H155: 285.6521905 | I155: 342.7826286 | J155: =IF(Tabelle2[[#This Row],[Bis]]>0,1,0) -> 1
B156: 91 | C156: Waschtisch einschl. Armatur ausbauen u. entsorgen | D156: St | E156: 25 | F156: =Tabelle2[[#This Row],[EP]]*MAIN!$H$10 -> 29.50952381 | G156: 25.08309524 | H156: 29.50952381 | I156: 35.41142857 | J156: =IF(Tabelle2[[#This Row],[Bis]]>0,1,0) -> 1
A157: * | B157: 92 | C157: Montageelement für Waschtisch, Stahl verz., pulver-besch. einschl. allem Zubehör liefern u. montieren | D157: St | E157: 107 | F157: =Tabelle2[[#This Row],[EP]]*MAIN!$H$10 -> 126.3007619 | G157: 107.3556476 | H157: 126.3007619 | I157: 151.5609143 | J157: =IF(Tabelle2[[#This Row],[Bis]]>0,1,0) -> 1
A158: * | B158: 93 | C158: Doppelwaschtisch, Keramik weiss, 121 x 47 cm mit seitlich angeformter Ablagefläche, sonst wie vor | D158: St | E158: 349 | F158: =Tabelle2[[#This Row],[EP]]*MAIN!$H$10 -> 411.9529524 | G158: 350.1600095 | H158: 411.9529524 | I158: 494.3435429 | J158: =IF(Tabelle2[[#This Row],[Bis]]>0,1,0) -> 1
A159: * | B159: 94 | C159: Duschwanne aus Stahl, weiß emailliert, aussen grundiert 800x800mm z. B. Fabr. Kaldewei einschl. Wannenfüsse, Wannenab-u. überlauf u. Geruchsverschluss liefern und montieren | D159: St | E159: 168 | F159: =Tabelle2[[#This Row],[EP]]*MAIN!$H$10 -> 198.304 | G159: 168.5584 | H159: 198.304 | I159: 237.9648 | J159: =IF(Tabelle2[[#This Row],[Bis]]>0,1,0) -> 1
A160: * | B160: 95 | C160: Wannenträger für Duschwanne 800/800mm Fabr. Kaldewei aus expand. Polystyrol | D160: St | E160: 54.5 | F160: =Tabelle2[[#This Row],[EP]]*MAIN!$H$10 -> 64.3307619 | G160: 54.68114762 | H160: 64.3307619 | I160: 77.19691429 | J160: =IF(Tabelle2[[#This Row],[Bis]]>0,1,0) -> 1
A161: * | B161: 96 | C161: Duschwanne, rechteckig,90 x 90 cm tiefe Ausführung, Wannenfüsse, erhöhter Schallschutz mit Anti-dröhnbeschichtung | D161: St | E161: 298 | F161: =Tabelle2[[#This Row],[EP]]*MAIN!$H$10 -> 351.7535238 | G161: 298.9904952 | H161: 351.7535238 | I161: 422.1042286 | J161: =IF(Tabelle2[[#This Row],[Bis]]>0,1,0) -> 1
A162: * | B162: 97 | C162: Duschwanne, rechteckig, 900/900mm aus Stahl, weiß emailliert einschl. Wannenträger aus Polystyrol | D162: St | E162: 354 | F162: =Tabelle2[[#This Row],[EP]]*MAIN!$H$10 -> 417.8548571 | G162: 355.1766286 | H162: 417.8548571 | I162: 501.4258286 | J162: =IF(Tabelle2[[#This Row],[Bis]]>0,1,0) -> 1
A163: * | B163: 98 | C163: Duschwanne, rechteckig aus Sanitäracryl, weiss, extraflach 90x90x2,5cm | D163: St | E163: 287 | F163: =Tabelle2[[#This Row],[EP]]*MAIN!$H$10 -> 338.7693333 | G163: 287.9539333 | H163: 338.7693333 | I163: 406.5232 | J163: =IF(Tabelle2[[#This Row],[Bis]]>0,1,0) -> 1
A164: * | B164: 99 | C164: Duschkabine,80 x 80 cm, Kunststoff mit Rahmen, schmutzabweis. Beschichtung, Schiebefalztür liefern u. montieren | D164: St | E164: 369 | F164: =Tabelle2[[#This Row],[EP]]*MAIN!$H$10 -> 435.5605714 | G164: 370.2264857 | H164: 435.5605714 | I164: 522.6726857 | J164: =IF(Tabelle2[[#This Row],[Bis]]>0,1,0) -> 1
A165: * | B165: 100 | C165: Duschwanne, rechteckig 100 x 100cm aus Acryl | D165: St | E165: 385 | F165: =Tabelle2[[#This Row],[EP]]*MAIN!$H$10 -> 454.4466667 | G165: 386.2796667 | H165: 454.4466667 | I165: 545.336 | J165: =IF(Tabelle2[[#This Row],[Bis]]>0,1,0) -> 1
B166: 101 | C166: Duschwanne einschl. Ablauf demontieren u. entsorg. | D166: St | E166: 77.9 | F166: =Tabelle2[[#This Row],[EP]]*MAIN!$H$10 -> 91.95167619 | G166: 78.15892476 | H166: 91.95167619 | I166: 110.3420114 | J166: =IF(Tabelle2[[#This Row],[Bis]]>0,1,0) -> 1
A167: * | B167: 102 | C167: Einbauwanne, Rechteck 180 x 80cm Sanitäracryl weiß, inkl. Füsse, Ablaufgarnitur, Wannenbefestigung, liefern u. montieren | D167: St | E167: 621.99 | F167: =Tabelle2[[#This Row],[EP]]*MAIN!$H$10 -> 734.1851486 | G167: 624.0573763 | H167: 734.1851486 | I167: 881.0221783 | J167: =IF(Tabelle2[[#This Row],[Bis]]>0,1,0) -> 1
B168: 103 | C168: Einbauwanne, Modell wie vor jedoch 170 x 80 cm | D168: St | E168: 379 | F168: =Tabelle2[[#This Row],[EP]]*MAIN!$H$10 -> 447.364381 | G168: 380.2597238 | H168: 447.364381 | I168: 536.8372571 | J168: =IF(Tabelle2[[#This Row],[Bis]]>0,1,0) -> 1
A169: * | B169: 104 | C169: Eckbadewanne 150 x100 cm, Sanitäracryl weiß, z. B. Fabr. Keramag inkl. Ablaufgarnitur | D169: St | E169: 558 | F169: =Tabelle2[[#This Row],[EP]]*MAIN!$H$10 -> 658.6525714 | G169: 559.8546857 | H169: 658.6525714 | I169: 790.3830857 | J169: =IF(Tabelle2[[#This Row],[Bis]]>0,1,0) -> 1
A170: * | B170: 105 | C170: Wannenträger, Polystyrol für vorgen. Eckbadewanne | D170: St | E170: 198.99 | F170: =Tabelle2[[#This Row],[EP]]*MAIN!$H$10 -> 234.8840057 | G170: 199.6514049 | H170: 234.8840057 | I170: 281.8608069 | J170: =IF(Tabelle2[[#This Row],[Bis]]>0,1,0) -> 1
B171: 106 | C171: Badewanne einschl. Ablauf ausbauen u. entsorgen | D171: St | E171: 95 | F171: =Tabelle2[[#This Row],[EP]]*MAIN!$H$10 -> 112.1361905 | G171: 95.3157619 | H171: 112.1361905 | I171: 134.5634286 | J171: =IF(Tabelle2[[#This Row],[Bis]]>0,1,0) -> 1
A172: * | B172: 107 | C172: Tiefspül-WC, bodenstehend, Sanitärkeramik weiß mit aufgesetztem Spülkasten b/h/t=360/400/650mm liefern u. montieren | D172: St | E172: 122.99 | F172: =Tabelle2[[#This Row],[EP]]*MAIN!$H$10 -> 145.1750533 | G172: 123.3987953 | H172: 145.1750533 | I172: 174.210064 | J172: =IF(Tabelle2[[#This Row],[Bis]]>0,1,0) -> 1
A173: * | B173: 108 | C173: Tiefspül-WC, Ausführung für WC-wandhängend, weiß b/h/t=360/400/660mm | D173: St | E173: 129.83 | F173: =Tabelle2[[#This Row],[EP]]*MAIN!$H$10 -> 153.248859 | G173: 130.2615302 | H173: 153.248859 | I173: 183.8986309 | J173: =IF(Tabelle2[[#This Row],[Bis]]>0,1,0) -> 1
B174: 109 | C174: WC-Anlage abbauen und entsorgen | D174: St | E174: 35 | F174: =Tabelle2[[#This Row],[EP]]*MAIN!$H$10 -> 41.31333333 | G174: 35.11633333 | H174: 41.31333333 | I174: 49.576 | J174: =IF(Tabelle2[[#This Row],[Bis]]>0,1,0) -> 1
A175: * | B175: 110 | C175: Montageelement für wandhängendes WC, Stahl, verz.und pulverbesch. mit UP-Spülkasten anschlussfertig liefern u. montieren | D175: St | E175: 205 | F175: =Tabelle2[[#This Row],[EP]]*MAIN!$H$10 -> 241.9780952 | G175: 205.681381 | H175: 241.9780952 | I175: 290.3737143 | J175: =IF(Tabelle2[[#This Row],[Bis]]>0,1,0) -> 1
A176: * | B176: 111 | C176: Montageelement für wandhängendes WC, Stahl, verz.und pulverbesch. mit UP-Spülkasten anschlussfertig liefern u. montieren, barrierefrei | D176: St | E176: 519.67 | F176: =Tabelle2[[#This Row],[EP]]*MAIN!$H$10 -> 613.4085695 | G176: =H176*0.85 -> 521.3972841 | H176: =F176 -> 613.4085695 | I176: =H176*1.2 -> 736.0902834
B177: 112 | C177: Montageelement für wandhängende Sanitärobjekte ausbauen u. entsorgen | D177: St | E177: 35 | F177: =Tabelle2[[#This Row],[EP]]*MAIN!$H$10 -> 41.31333333 | G177: 35.11633333 | H177: 41.31333333 | I177: 49.576 | J177: =IF(Tabelle2[[#This Row],[Bis]]>0,1,0) -> 1
A178: * | B178: 113 | C178: Bidet bodenstehend aus Sanitärporzellan,z.b. V+B O.Novo, Farbe weiß, einschl. verchromter Armatur liefern u. montieren | D178: St | E178: 138.91 | F178: =Tabelle2[[#This Row],[EP]]*MAIN!$H$10 -> 163.9667181 | G178: 139.3717104 | H178: 163.9667181 | I178: 196.7600617 | J178: =IF(Tabelle2[[#This Row],[Bis]]>0,1,0) -> 1
A179: * | B179: 114 | C179: Bidet z.B. V+B o.Novo,wandhängend, sonst wie vor | D179: St | E179: 342 | F179: =Tabelle2[[#This Row],[EP]]*MAIN!$H$10 -> 403.6902857 | G179: 343.1367429 | H179: 403.6902857 | I179: 484.4283429 | J179: =IF(Tabelle2[[#This Row],[Bis]]>0,1,0) -> 1
A180: * | B180: 115 | C180: Urinalbecken aus Sanitärporzellan, Zulauf oben, Ablauf unten, Farbe weiß, liefern u. montieren | D180: St | E180: 225 | F180: =Tabelle2[[#This Row],[EP]]*MAIN!$H$10 -> 265.5857143 | G180: 225.7478571 | H180: 265.5857143 | I180: 318.7028571 | J180: =IF(Tabelle2[[#This Row],[Bis]]>0,1,0) -> 1
A181: * | B181: 116 | C181: Urinalbecken aus Sanitärporzellan, Zulauf oben, Ablauf unten, Farbe weiß, liefern u. montieren inkl. Montageelement | D181: St | E181: 225 | F181: =Tabelle2[[#This Row],[EP]]*MAIN!$H$10 -> 265.5857143 | G181: =H181*0.85 -> 225.7478571 | H181: =F181 -> 265.5857143 | I181: =H181*1.2 -> 318.7028571
B182: 117 | C182: Urinalbecken abbauen u. entsorgen | D182: St | E182: 35 | F182: =Tabelle2[[#This Row],[EP]]*MAIN!$H$10 -> 41.31333333 | G182: 35.11633333 | H182: 41.31333333 | I182: 49.576 | J182: =IF(Tabelle2[[#This Row],[Bis]]>0,1,0) -> 1
J183: =IF(Tabelle2[[#This Row],[Bis]]>0,1,0) -> 0
C184: Ausstattungen vom Fachhandel ohne Montage | J184: =IF(Tabelle2[[#This Row],[Bis]]>0,1,0) -> 0
B185: =B182+1 -> 118 | C185: Diese Aufstellung dient nur zur Information. Die Angebote für Objekte und Ausstattung dieser Kategorie unterliegen häufigen Marktvariationen. | J185: =IF(Tabelle2[[#This Row],[Bis]]>0,1,0) -> 0
A186: * | B186: =B185+1 -> 119 | C186: WC-Sitz mit Deckel, leicht abnehmbar, mit Absenkautomatik; Material Duroplast mit Scharnieren aus Edelstahl | D186: St | E186: 54.9 | F186: =Tabelle2[[#This Row],[EP]]*MAIN!$H$10 -> 64.80291429 | G186: =H186*0.85 -> 55.08247714 | H186: =F186 -> 64.80291429 | I186: =H186*1.2 -> 77.76349714 | J186: =IF(Tabelle2[[#This Row],[Bis]]>0,1,0) -> 1
A187: * | B187: =B186+1 -> 120 | C187: WC-Sitz mit Deckel aus Holz und Befestigung aus Messing | D187: St | E187: 59.99 | F187: =Tabelle2[[#This Row],[EP]]*MAIN!$H$10 -> 70.81105333 | G187: 60.18939533 | H187: 70.81105333 | I187: 84.973264 | J187: =IF(Tabelle2[[#This Row],[Bis]]>0,1,0) -> 1
A188: * | B188: 121 | C188: Toilettenpapierhalter, verchromt, in offener Ausführung | D188: St | E188: 47.26 | F188: =Tabelle2[[#This Row],[EP]]*MAIN!$H$10 -> 55.78480381 | G188: 47.41708324 | H188: 55.78480381 | I188: 66.94176457 | J188: =IF(Tabelle2[[#This Row],[Bis]]>0,1,0) -> 1
A189: * | B189: 122 | C189: Toilettenpapierhalter, verchromt, mit Abdeckung | D189: St | E189: 53.06 | F189: =Tabelle2[[#This Row],[EP]]*MAIN!$H$10 -> 62.63101333 | G189: 53.23636133 | H189: 62.63101333 | I189: 75.157216 | J189: =IF(Tabelle2[[#This Row],[Bis]]>0,1,0) -> 1
B190: 123 | C190: Ablage über Waschbecken aus Sanitärkeramik, b=500mm, Farbe weiß | D190: St | E190: 37.84 | F190: =Tabelle2[[#This Row],[EP]]*MAIN!$H$10 -> 44.66561524 | G190: 37.96577295 | H190: 44.66561524 | I190: 53.59873829 | J190: =IF(Tabelle2[[#This Row],[Bis]]>0,1,0) -> 1
B191: 124 | C191: Ablageplatte aus Kristallglas, l=600mm | D191: St | E191: 48.84 | F191: =Tabelle2[[#This Row],[EP]]*MAIN!$H$10 -> 57.64980571 | G191: 49.00233486 | H191: 57.64980571 | I191: 69.17976686 | J191: =IF(Tabelle2[[#This Row],[Bis]]>0,1,0) -> 1
B192: 125 | C192: Seifenablage mit Schale aus Kristallglas und verchromten Haltebügel | D192: St | E192: 39.78 | F192: =Tabelle2[[#This Row],[EP]]*MAIN!$H$10 -> 46.95555429 | G192: 39.91222114 | H192: 46.95555429 | I192: 56.34666514 | J192: =IF(Tabelle2[[#This Row],[Bis]]>0,1,0) -> 1
B193: 126 | C193: Kristallspiegel mit Facettenschliff, Form rechteckig | D193: St | E193: 54.3 | F193: =Tabelle2[[#This Row],[EP]]*MAIN!$H$10 -> 64.09468571 | G193: 54.48048286 | H193: 64.09468571 | I193: 76.91362286 | J193: =IF(Tabelle2[[#This Row],[Bis]]>0,1,0) -> 1
B194: 127 | C194: Kristallspiegel mit Facettenschliff in runder Ausführung | D194: St | E194: 60.98 | F194: =Tabelle2[[#This Row],[EP]]*MAIN!$H$10 -> 71.97963048 | G194: 61.1826859 | H194: 71.97963048 | I194: 86.37555657 | J194: =IF(Tabelle2[[#This Row],[Bis]]>0,1,0) -> 1
B195: 128 | C195: Handtuchhalter, einarmig in verchromter Ausführung liefern u. montieren | D195: St | E195: 18.57 | F195: =Tabelle2[[#This Row],[EP]]*MAIN!$H$10 -> 21.91967429 | G195: 18.63172314 | H195: 21.91967429 | I195: 26.30360914 | J195: =IF(Tabelle2[[#This Row],[Bis]]>0,1,0) -> 1
B196: 129 | C196: Handtuchhalter, zweiarmig, verchromt und schwenkbar | D196: St | E196: 20.86 | F196: =Tabelle2[[#This Row],[EP]]*MAIN!$H$10 -> 24.62274667 | G196: 20.92933467 | H196: 24.62274667 | I196: 29.547296 | J196: =IF(Tabelle2[[#This Row],[Bis]]>0,1,0) -> 1
B197: 130 | C197: Handtuchring, verchromt, Ausführung rund | D197: St | E197: 53.68 | F197: =Tabelle2[[#This Row],[EP]]*MAIN!$H$10 -> 63.36284952 | G197: 53.8584221 | H197: 63.36284952 | I197: 76.03541943 | J197: =IF(Tabelle2[[#This Row],[Bis]]>0,1,0) -> 1
A198: * | B198: 131 | C198: Badetuchhalter, einarmig, verchromt, Ausladung 600mm | D198: St | E198: 34.99 | F198: =Tabelle2[[#This Row],[EP]]*MAIN!$H$10 -> 41.30152952 | G198: 35.1063001 | H198: 41.30152952 | I198: 49.56183543 | J198: =IF(Tabelle2[[#This Row],[Bis]]>0,1,0) -> 1
B199: 132 | C199: Haltegriff, verchromt, gerade Ausführung | D199: St | E199: 27.54 | F199: =Tabelle2[[#This Row],[EP]]*MAIN!$H$10 -> 32.50769143 | G199: 27.63153771 | H199: 32.50769143 | I199: 39.00922971 | J199: =IF(Tabelle2[[#This Row],[Bis]]>0,1,0) -> 1
B200: 133 | C200: Haltegriff mit Seifenablage, verchromt, in abgewinkelter Ausführung | D200: St | E200: 90.2 | F200: =Tabelle2[[#This Row],[EP]]*MAIN!$H$10 -> 106.4703619 | G200: 90.49980762 | H200: 106.4703619 | I200: 127.7644343 | J200: =IF(Tabelle2[[#This Row],[Bis]]>0,1,0) -> 1
B201: 134 | C201: Seitenwand für Dusche aus 8mm Einscheiben- Sicherheitsglas, rahmenlos in Klarglas, b/h=900/2000mm | D201: St | E201: 242 | F201: =Tabelle2[[#This Row],[EP]]*MAIN!$H$10 -> 285.6521905 | G201: 242.8043619 | H201: 285.6521905 | I201: 342.7826286 | J201: =IF(Tabelle2[[#This Row],[Bis]]>0,1,0) -> 1
B202: 135 | C202: Duschkabine für Eckeinstieg mit 5mm Einscheiben-Sicherheitsglas b/t/h=800/800/1.800mm | D202: St | E202: 361.34 | F202: =Tabelle2[[#This Row],[EP]]*MAIN!$H$10 -> 426.5188533 | G202: 362.5410253 | H202: 426.5188533 | I202: 511.822624 | J202: =IF(Tabelle2[[#This Row],[Bis]]>0,1,0) -> 1
B203: 136 | C203: Duschabtrennung als Pendeltür für 3-seitig eingebaute Duschen (Nischen) mit 5mm Sicherheitsglas, b/h=800/1,.800mm | D203: St | E203: 259.78 | F203: =Tabelle2[[#This Row],[EP]]*MAIN!$H$10 -> 306.6393638 | G203: 260.6434592 | H203: 306.6393638 | I203: 367.9672366 | J203: =IF(Tabelle2[[#This Row],[Bis]]>0,1,0) -> 1
B204: 137 | C204: Duschklappsitz für Wandmontage aus Stahl mit Einbrennlackierung, weiß, b=365mm, Sitztiefe 285mm | D204: St | E204: 69.26 | F204: =Tabelle2[[#This Row],[EP]]*MAIN!$H$10 -> 81.75318476 | G204: 69.49020705 | H204: 81.75318476 | I204: 98.10382171 | J204: =IF(Tabelle2[[#This Row],[Bis]]>0,1,0) -> 1
J205: =IF(Tabelle2[[#This Row],[Bis]]>0,1,0) -> 0
C206: Zubehör vom Fachhandel ohne Montage | J206: =IF(Tabelle2[[#This Row],[Bis]]>0,1,0) -> 0
C207: Diese Aufstellung dient nur zur Information. Die Angebote für Objekte und Ausstattung dieser Kategorie unterliegen häufigen Marktvariationen. Ohne Versand! | J207: =IF(Tabelle2[[#This Row],[Bis]]>0,1,0) -> 0
... 46 more rows

Sheet Datensatz
B2: Ergebnis | C2: =INDEX(1:1048576,C8,B8) -> 1.180380952 | F2: Quelle, Prüflink: | G2: DESTATITS LINK
F3: ø Steigerung in %: | G3: =(G28-G8)/21 -> 0.008380952381 | H3: =(H28-H8)/21 -> 0.008619047619 | I3: =(I28-I8)/21 -> 0.008666666667
A4: Liste | B4: Trefferspalte | C4: Trefferzeile | D4: Suchindex | E4: Jahr | F4: Quartal | G4: Wohngebäude | H4: Bürogebäude | I4: Industriegebäude
A8: 2015 | B8: =MATCH(MAIN!F10,Datensatz!4:4,0) -> 7 | C8: =MATCH(MAIN!C10&MAIN!D10,Datensatz!D:D,0) -> 29 | D8: =Tabelle3[[#This Row],[Jahr]]&Tabelle3[[#This Row],[Quartal]] -> 2015I | E8: 2015 | F8: I | G8: 0.996 | H8: 0.995 | I8: 0.995
A9: 2016 | D9: =E8&Tabelle3[[#This Row],[Quartal]] -> 2015II | F9: II | G9: 0.998 | H9: 0.998 | I9: 0.998
A10: 2017 | D10: =E8&Tabelle3[[#This Row],[Quartal]] -> 2015III | F10: III | G10: 1.002 | H10: 1.002 | I10: 0.103
A11: 2018 | D11: =E8&Tabelle3[[#This Row],[Quartal]] -> 2015IV | F11: IV | G11: 1.004 | H11: 1.005 | I11: 1.004
A12: 2019 | D12: =Tabelle3[[#This Row],[Jahr]]&Tabelle3[[#This Row],[Quartal]] -> 2016I | E12: 2016 | F12: I | G12: 1.012 | H12: 1.013 | I12: 1.012
A13: 2020 | D13: =E12&Tabelle3[[#This Row],[Quartal]] -> 2016II | F13: II | G13: 1.019 | H13: 1.02 | I13: 1.018
A14: 2021 | D14: =E12&Tabelle3[[#This Row],[Quartal]] -> 2016III | F14: III | G14: 1.024 | H14: 1.025 | I14: 1.024
A15: 2022 | D15: =E12&Tabelle3[[#This Row],[Quartal]] -> 2016IV | F15: IV | G15: 1.027 | H15: 1.029 | I15: 1.028
A16: 2023 | D16: =Tabelle3[[#This Row],[Jahr]]&Tabelle3[[#This Row],[Quartal]] -> 2017I | E16: 2017 | F16: I | G16: 1.04 | H16: 1.042 | I16: 1.041
A17: 2024 | D17: =E16&Tabelle3[[#This Row],[Quartal]] -> 2017II | F17: II | G17: 1.049 | H17: 1.051 | I17: 1.051
A18: 2025 | D18: =E16&Tabelle3[[#This Row],[Quartal]] -> 2017III | F18: III | G18: 1.057 | H18: 1.059 | I18: 1.059
A19: 2026 | D19: =E16&Tabelle3[[#This Row],[Quartal]] -> 2017IV | F19: IV | G19: 1.064 | H19: 1.067 | I19: 1.068
A20: 2027 | D20: =Tabelle3[[#This Row],[Jahr]]&Tabelle3[[#This Row],[Quartal]] -> 2018I | E20: 2018 | F20: I | G20: 1.082 | H20: 1.085 | I20: 1.085
A21: 2028 | D21: =E20&Tabelle3[[#This Row],[Quartal]] -> 2018II | F21: II | G21: 1.092 | H21: 1.095 | I21: 1.095
A22: 2029 | D22: =E20&Tabelle3[[#This Row],[Quartal]] -> 2018III | F22: III | G22: 1.106 | H22: 1.109 | I22: 1.11
A23: 2030 | D23: =E20&Tabelle3[[#This Row],[Quartal]] -> 2018IV | F23: IV | G23: 1.115 | H23: 1.117 | I23: 1.119
D24: =Tabelle3[[#This Row],[Jahr]]&Tabelle3[[#This Row],[Quartal]] -> 2019I | E24: 2019 | F24: I | G24: 1.134 | H24: 1.137 | I24: 1.139
D25: =E24&Tabelle3[[#This Row],[Quartal]] -> 2019II | F25: II | G25: 1.143 | H25: 1.146 | I25: 1.147
D26: =E24&Tabelle3[[#This Row],[Quartal]] -> 2019III | F26: III | G26: 1.151 | H26: 1.154 | I26: 1.156
D27: =E24&Tabelle3[[#This Row],[Quartal]] -> 2019IV | F27: IV | G27: 1.157 | H27: 1.161 | I27: 1.162
D28: =Tabelle3[[#This Row],[Jahr]]&Tabelle3[[#This Row],[Quartal]] -> 2020I | E28: 2020 | F28: I | G28: 1.172 | H28: 1.176 | I28: 1.177
D29: =E28&Tabelle3[[#This Row],[Quartal]] -> 2020II | F29: II | G29: =G28+$G$3 -> 1.180380952 | H29: =H28+$H$3 -> 1.184619048 | I29: =I28+$I$3 -> 1.185666667
D30: =E28&Tabelle3[[#This Row],[Quartal]] -> 2020III | F30: III | G30: =G29+$G$3 -> 1.188761905 | H30: =H29+$H$3 -> 1.193238095 | I30: =I29+$I$3 -> 1.194333333
D31: =E28&Tabelle3[[#This Row],[Quartal]] -> 2020IV | F31: IV | G31: 1.197142857 | H31: =H30+$H$3 -> 1.201857143 | I31: 1.203
D32: =Tabelle3[[#This Row],[Jahr]]&Tabelle3[[#This Row],[Quartal]] -> 2021I | E32: 2021 | F32: I | G32: =G31+$G$3 -> 1.20552381 | H32: 1.21047619 | I32: 1.211666667
D33: =E32&Tabelle3[[#This Row],[Quartal]] -> 2021II | F33: II | G33: =G32+$G$3 -> 1.213904762 | H33: 1.219095238 | I33: 1.220333333
D34: =E32&Tabelle3[[#This Row],[Quartal]] -> 2021III | F34: III | G34: 1.222285714 | H34: 1.227714286 | I34: 1.229
D35: =E32&Tabelle3[[#This Row],[Quartal]] -> 2021IV | F35: IV | G35: 1.230666667 | H35: 1.236333333 | I35: 1.237666667
D36: =Tabelle3[[#This Row],[Jahr]]&Tabelle3[[#This Row],[Quartal]] -> 2022I | E36: 2022 | F36: I | G36: =G35+$G$3 -> 1.239047619 | H36: 1.244952381 | I36: 1.246333333
D37: =E36&Tabelle3[[#This Row],[Quartal]] -> 2022II | F37: II | G37: =G36+$G$3 -> 1.247428571 | H37: 1.253571429 | I37: 1.255
D38: =E36&Tabelle3[[#This Row],[Quartal]] -> 2022III | F38: III | G38: 1.255809524 | H38: 1.262190476 | I38: 1.263666667
D39: =E36&Tabelle3[[#This Row],[Quartal]] -> 2022IV | F39: IV | G39: 1.264190476 | H39: 1.270809524 | I39: 1.272333333
D40: =Tabelle3[[#This Row],[Jahr]]&Tabelle3[[#This Row],[Quartal]] -> 2023I | E40: 2023 | F40: I | G40: =G39+$G$3 -> 1.272571429 | H40: 1.279428571 | I40: 1.281
D41: =E40&Tabelle3[[#This Row],[Quartal]] -> 2023II | F41: II | G41: =G40+$G$3 -> 1.280952381 | H41: 1.288047619 | I41: 1.289666667
D42: =E40&Tabelle3[[#This Row],[Quartal]] -> 2023III | F42: III | G42: 1.289333333 | H42: 1.296666667 | I42: 1.298333333
D43: =E40&Tabelle3[[#This Row],[Quartal]] -> 2023IV | F43: IV | G43: 1.297714286 | H43: 1.305285714 | I43: 1.307
D44: =Tabelle3[[#This Row],[Jahr]]&Tabelle3[[#This Row],[Quartal]] -> 2024I | E44: 2024 | F44: I | G44: =G43+$G$3 -> 1.306095238 | H44: 1.313904762 | I44: 1.315666667
D45: =E44&Tabelle3[[#This Row],[Quartal]] -> 2024II | F45: II | G45: =G44+$G$3 -> 1.31447619 | H45: 1.32252381 | I45: 1.324333333
D46: =E44&Tabelle3[[#This Row],[Quartal]] -> 2024III | F46: III | G46: 1.322857143 | H46: 1.331142857 | I46: 1.333
D47: =E44&Tabelle3[[#This Row],[Quartal]] -> 2024IV | F47: IV | G47: 1.331238095 | H47: 1.339761905 | I47: 1.341666667
D48: =Tabelle3[[#This Row],[Jahr]]&Tabelle3[[#This Row],[Quartal]] -> 2025I | E48: 2025 | F48: I | G48: =G47+$G$3 -> 1.339619048 | H48: 1.348380952 | I48: 1.350333333
D49: =E48&Tabelle3[[#This Row],[Quartal]] -> 2025II | F49: II | G49: =G48+$G$3 -> 1.348 | H49: 1.357 | I49: 1.359
D50: =E48&Tabelle3[[#This Row],[Quartal]] -> 2025III | F50: III | G50: 1.356380952 | H50: 1.365619048 | I50: 1.367666667
D51: =E48&Tabelle3[[#This Row],[Quartal]] -> 2025IV | F51: IV | G51: 1.364761905 | H51: 1.374238095 | I51: 1.376333333
D52: =Tabelle3[[#This Row],[Jahr]]&Tabelle3[[#This Row],[Quartal]] -> 2026I | E52: 2026 | F52: I | G52: =G51+$G$3 -> 1.373142857 | H52: =H51+$H$3 -> 1.382857143 | I52: =I51+$I$3 -> 1.385
D53: =E52&Tabelle3[[#This Row],[Quartal]] -> 2026II | F53: II | G53: =G52+$G$3 -> 1.38152381 | H53: 1.39147619 | I53: 1.393666667
D54: =E52&Tabelle3[[#This Row],[Quartal]] -> 2026III | F54: III | G54: 1.389904762 | H54: 1.400095238 | I54: 1.402333333
D55: =E52&Tabelle3[[#This Row],[Quartal]] -> 2026IV | F55: IV | G55: 1.398285714 | H55: 1.408714286 | I55: 1.411
D56: =Tabelle3[[#This Row],[Jahr]]&Tabelle3[[#This Row],[Quartal]] -> 2027I | E56: 2027 | F56: I | G56: =G55+$G$3 -> 1.406666667 | H56: 1.417333333 | I56: 1.419666667
D57: =E56&Tabelle3[[#This Row],[Quartal]] -> 2027II | F57: II | G57: =G56+$G$3 -> 1.415047619 | H57: 1.425952381 | I57: 1.428333333
D58: =E56&Tabelle3[[#This Row],[Quartal]] -> 2027III | F58: III | G58: 1.423428571 | H58: 1.434571429 | I58: 1.437
D59: =E56&Tabelle3[[#This Row],[Quartal]] -> 2027IV | F59: IV | G59: 1.431809524 | H59: 1.443190476 | I59: 1.445666667
D60: =Tabelle3[[#This Row],[Jahr]]&Tabelle3[[#This Row],[Quartal]] -> 2028I | E60: 2028 | F60: I | G60: =G59+$G$3 -> 1.440190476 | H60: 1.451809524 | I60: 1.454333333
D61: =E60&Tabelle3[[#This Row],[Quartal]] -> 2028II | F61: II | G61: =G60+$G$3 -> 1.448571429 | H61: 1.460428571 | I61: 1.463
D62: =E60&Tabelle3[[#This Row],[Quartal]] -> 2028III | F62: III | G62: 1.456952381 | H62: 1.469047619 | I62: 1.471666667
D63: =E60&Tabelle3[[#This Row],[Quartal]] -> 2028IV | F63: IV | G63: 1.465333333 | H63: 1.477666667 | I63: 1.480333333
D64: =Tabelle3[[#This Row],[Jahr]]&Tabelle3[[#This Row],[Quartal]] -> 2029I | E64: 2029 | F64: I | G64: =G63+$G$3 -> 1.473714286 | H64: 1.486285714 | I64: 1.489
D65: =E64&Tabelle3[[#This Row],[Quartal]] -> 2029II | F65: II | G65: =G64+$G$3 -> 1.482095238 | H65: 1.494904762 | I65: 1.497666667
D66: =E64&Tabelle3[[#This Row],[Quartal]] -> 2029III | F66: III | G66: 1.49047619 | H66: 1.50352381 | I66: 1.506333333
D67: =E64&Tabelle3[[#This Row],[Quartal]] -> 2029IV | F67: IV | G67: 1.498857143 | H67: 1.512142857 | I67: 1.515
D68: =Tabelle3[[#This Row],[Jahr]]&Tabelle3[[#This Row],[Quartal]] -> 2030I | E68: 2030 | F68: I | G68: =G67+$G$3 -> 1.507238095 | H68: 1.520761905 | I68: 1.523666667
D69: =E68&Tabelle3[[#This Row],[Quartal]] -> 2030II | F69: II | G69: =G68+$G$3 -> 1.515619048 | H69: 1.529380952 | I69: 1.532333333
D70: =E68&Tabelle3[[#This Row],[Quartal]] -> 2030III | F70: III | G70: 1.524 | H70: 1.538 | I70: 1.541
D71: =E68&Tabelle3[[#This Row],[Quartal]] -> 2030IV | F71: IV | G71: 1.532380952 | H71: 1.546619048 | I71: 1.549666667
